BODY,BODY NAME,9CCC - Level 9 Cost Centre Code,9CCN - Level 9 Cost Centre Name,9AC - Level 9 Account Code,9AN - Level 9 Account Name,Transaction Reference Code,Entry Date,Posting Date,Customer/Supplier Code,Customer/Supplier Name,Their Ref, Amount(Transaction Line Amount) 
http://statistics.data.gov.uk/id/local-authority/12UE,Huntingdonshire District Council,QE90,Property Development And Mgt,100,Hired Staff,220261,06/11/2017,06/11/2017,CR424684,PRIME PEOPLE,SC-00000007,"-11,565.00 "
http://statistics.data.gov.uk/id/local-authority/12UE,Huntingdonshire District Council,QE90,Property Development And Mgt,100,Hired Staff,220856,16/11/2017,16/11/2017,CR423917,HAYS,1007888982,"-1,125.00 "
http://statistics.data.gov.uk/id/local-authority/12UE,Huntingdonshire District Council,LQ27,Burgess Bar,100,Hired Staff,221214,23/11/2017,23/11/2017,CR422374,POINT PROFESSIONAL RECRUITMENT LTD,11890, 289.98 
http://statistics.data.gov.uk/id/local-authority/12UE,Huntingdonshire District Council,MU69,Customer Service Centres,100,Hired Staff,221398,27/11/2017,27/11/2017,CR422369,MEYER SCOTT RECRUITMENT LIMITED,35929, 290.18 
http://statistics.data.gov.uk/id/local-authority/12UE,Huntingdonshire District Council,MU69,Customer Service Centres,100,Hired Staff,220195,03/11/2017,03/11/2017,CR422369,MEYER SCOTT RECRUITMENT LIMITED,35283, 296.78 
http://statistics.data.gov.uk/id/local-authority/12UE,Huntingdonshire District Council,LQ21,Burgess Hall,100,Hired Staff,221094,29/11/2017,30/11/2017,CR422363,SHOW & EVENT SECURITY,23415, 316.00 
http://statistics.data.gov.uk/id/local-authority/12UE,Huntingdonshire District Council,MU69,Customer Service Centres,100,Hired Staff,220167,03/11/2017,03/11/2017,CR424715,ADVANTAGE RESOURCING,90466509, 344.92 
http://statistics.data.gov.uk/id/local-authority/12UE,Huntingdonshire District Council,MU76,Finance,100,Hired Staff,220260,06/11/2017,06/11/2017,CR424012,FIRST RECRUITMENT GROUP LTD,291885, 370.48 
http://statistics.data.gov.uk/id/local-authority/12UE,Huntingdonshire District Council,MU76,Finance,100,Hired Staff,221241,23/11/2017,23/11/2017,CR424012,FIRST RECRUITMENT GROUP LTD,293357, 383.11 
http://statistics.data.gov.uk/id/local-authority/12UE,Huntingdonshire District Council,ER01,Domestic Waste Collection,100,Hired Staff,219803,15/11/2017,15/11/2017,CR416827,STAFFLINE GROUP,IN0633999, 392.57 
http://statistics.data.gov.uk/id/local-authority/12UE,Huntingdonshire District Council,ER01,Domestic Waste Collection,100,Hired Staff,219805,15/11/2017,15/11/2017,CR416827,STAFFLINE GROUP,IN0635388, 445.16 
http://statistics.data.gov.uk/id/local-authority/12UE,Huntingdonshire District Council,MU76,Finance,100,Hired Staff,220554,09/11/2017,09/11/2017,CR424012,FIRST RECRUITMENT GROUP LTD,285135, 456.48 
http://statistics.data.gov.uk/id/local-authority/12UE,Huntingdonshire District Council,MU76,Finance,100,Hired Staff,221595,30/11/2017,30/11/2017,CR424012,FIRST RECRUITMENT GROUP LTD,294045, 467.31 
http://statistics.data.gov.uk/id/local-authority/12UE,Huntingdonshire District Council,MU76,Finance,100,Hired Staff,219990,02/11/2017,02/11/2017,CR424012,FIRST RECRUITMENT GROUP LTD,291221, 469.16 
http://statistics.data.gov.uk/id/local-authority/12UE,Huntingdonshire District Council,MU76,Finance,100,Hired Staff,220259,06/11/2017,06/11/2017,CR424012,FIRST RECRUITMENT GROUP LTD,291886, 469.16 
http://statistics.data.gov.uk/id/local-authority/12UE,Huntingdonshire District Council,MU76,Finance,100,Hired Staff,220853,16/11/2017,16/11/2017,CR424012,FIRST RECRUITMENT GROUP LTD,292628, 469.16 
http://statistics.data.gov.uk/id/local-authority/12UE,Huntingdonshire District Council,MU76,Finance,100,Hired Staff,221242,23/11/2017,23/11/2017,CR424012,FIRST RECRUITMENT GROUP LTD,293358, 469.16 
http://statistics.data.gov.uk/id/local-authority/12UE,Huntingdonshire District Council,MU76,Finance,100,Hired Staff,221594,30/11/2017,30/11/2017,CR424012,FIRST RECRUITMENT GROUP LTD,294046, 469.16 
http://statistics.data.gov.uk/id/local-authority/12UE,Huntingdonshire District Council,ER01,Domestic Waste Collection,100,Hired Staff,219344,02/11/2017,02/11/2017,CR416827,STAFFLINE GROUP,IN0632407, 488.03 
http://statistics.data.gov.uk/id/local-authority/12UE,Huntingdonshire District Council,MU35,Housing Needs & Resources,100,Hired Staff,221561,30/11/2017,30/11/2017,CR422369,MEYER SCOTT RECRUITMENT LIMITED,35960, 515.82 
http://statistics.data.gov.uk/id/local-authority/12UE,Huntingdonshire District Council,MD20,Imd Shared Service,100,Hired Staff,220819,15/11/2017,16/11/2017,CR425010,ROC RESEARCH LIMITED,SI-31661, 531.30 
http://statistics.data.gov.uk/id/local-authority/12UE,Huntingdonshire District Council,MU76,Finance,100,Hired Staff,219991,02/11/2017,02/11/2017,CR424012,FIRST RECRUITMENT GROUP LTD,291220, 555.72 
http://statistics.data.gov.uk/id/local-authority/12UE,Huntingdonshire District Council,MU76,Finance,100,Hired Staff,220854,16/11/2017,16/11/2017,CR424012,FIRST RECRUITMENT GROUP LTD,292627, 568.35 
http://statistics.data.gov.uk/id/local-authority/12UE,Huntingdonshire District Council,MD20,Imd Shared Service,100,Hired Staff,220799,15/11/2017,16/11/2017,CR424731,L A INTERNATIONAL COMPUTER CONSULTANTS LTD,LA463223, 592.50 
http://statistics.data.gov.uk/id/local-authority/12UE,Huntingdonshire District Council,MD20,Imd Shared Service,100,Hired Staff,221171,22/11/2017,23/11/2017,CR424731,L A INTERNATIONAL COMPUTER CONSULTANTS LTD,LA463569, 592.50 
http://statistics.data.gov.uk/id/local-authority/12UE,Huntingdonshire District Council,MD20,Imd Shared Service,100,Hired Staff,221177,22/11/2017,23/11/2017,CR425010,ROC RESEARCH LIMITED,SI-31225, 593.29 
http://statistics.data.gov.uk/id/local-authority/12UE,Huntingdonshire District Council,MD20,Imd Shared Service,100,Hired Staff,219920,01/11/2017,02/11/2017,CR482676,ADVANTAGE,126380, 600.00 
http://statistics.data.gov.uk/id/local-authority/12UE,Huntingdonshire District Council,MD20,Imd Shared Service,100,Hired Staff,220305,08/11/2017,09/11/2017,CR482676,ADVANTAGE,126431, 600.00 
http://statistics.data.gov.uk/id/local-authority/12UE,Huntingdonshire District Council,MD20,Imd Shared Service,100,Hired Staff,221173,22/11/2017,23/11/2017,CR424731,L A INTERNATIONAL COMPUTER CONSULTANTS LTD,LA463570, 600.00 
http://statistics.data.gov.uk/id/local-authority/12UE,Huntingdonshire District Council,MD20,Imd Shared Service,100,Hired Staff,221176,22/11/2017,23/11/2017,CR425010,ROC RESEARCH LIMITED,SI-31410, 664.13 
http://statistics.data.gov.uk/id/local-authority/12UE,Huntingdonshire District Council,MD20,Imd Shared Service,100,Hired Staff,221178,22/11/2017,23/11/2017,CR425010,ROC RESEARCH LIMITED,SI-31807, 664.13 
http://statistics.data.gov.uk/id/local-authority/12UE,Huntingdonshire District Council,MD20,Imd Shared Service,100,Hired Staff,221517,29/11/2017,30/11/2017,CR425010,ROC RESEARCH LIMITED,SI-31941, 664.13 
http://statistics.data.gov.uk/id/local-authority/12UE,Huntingdonshire District Council,MU69,Customer Service Centres,100,Hired Staff,220166,03/11/2017,03/11/2017,CR422369,MEYER SCOTT RECRUITMENT LIMITED,35839, 685.88 
http://statistics.data.gov.uk/id/local-authority/12UE,Huntingdonshire District Council,QE90,Property Development And Mgt,100,Hired Staff,220404,09/11/2017,09/11/2017,CR455208,CFL ESTATE SERVICES,HDC076, 738.00 
http://statistics.data.gov.uk/id/local-authority/12UE,Huntingdonshire District Council,MD20,Imd Shared Service,100,Hired Staff,220302,08/11/2017,09/11/2017,CR424731,L A INTERNATIONAL COMPUTER CONSULTANTS LTD,LA460919, 740.63 
http://statistics.data.gov.uk/id/local-authority/12UE,Huntingdonshire District Council,MD20,Imd Shared Service,100,Hired Staff,219922,01/11/2017,02/11/2017,CR482676,ADVANTAGE,LA459035, 740.63 
http://statistics.data.gov.uk/id/local-authority/12UE,Huntingdonshire District Council,MD20,Imd Shared Service,100,Hired Staff,219923,01/11/2017,02/11/2017,CR424731,L A INTERNATIONAL COMPUTER CONSULTANTS LTD,LA459808, 740.63 
http://statistics.data.gov.uk/id/local-authority/12UE,Huntingdonshire District Council,MD20,Imd Shared Service,100,Hired Staff,220300,08/11/2017,09/11/2017,CR424731,L A INTERNATIONAL COMPUTER CONSULTANTS LTD,LA459035, 740.63 
http://statistics.data.gov.uk/id/local-authority/12UE,Huntingdonshire District Council,MD20,Imd Shared Service,100,Hired Staff,221511,29/11/2017,30/11/2017,CR424731,L A INTERNATIONAL COMPUTER CONSULTANTS LTD,LA464941, 740.63 
http://statistics.data.gov.uk/id/local-authority/12UE,Huntingdonshire District Council,MU69,Customer Service Centres,100,Hired Staff,220600,10/11/2017,10/11/2017,CR422369,MEYER SCOTT RECRUITMENT LIMITED,35871, 748.53 
http://statistics.data.gov.uk/id/local-authority/12UE,Huntingdonshire District Council,MD20,Imd Shared Service,100,Hired Staff,220798,15/11/2017,16/11/2017,CR424731,L A INTERNATIONAL COMPUTER CONSULTANTS LTD,LA463224, 750.00 
http://statistics.data.gov.uk/id/local-authority/12UE,Huntingdonshire District Council,QE90,Property Development And Mgt,100,Hired Staff,220557,09/11/2017,09/11/2017,CR423917,HAYS,1008046458, 750.00 
http://statistics.data.gov.uk/id/local-authority/12UE,Huntingdonshire District Council,QE90,Property Development And Mgt,100,Hired Staff,221235,23/11/2017,23/11/2017,CR423917,HAYS,1007973625, 750.00 
http://statistics.data.gov.uk/id/local-authority/12UE,Huntingdonshire District Council,QE90,Property Development And Mgt,100,Hired Staff,221237,23/11/2017,23/11/2017,CR423917,HAYS,1007973626, 750.00 
http://statistics.data.gov.uk/id/local-authority/12UE,Huntingdonshire District Council,MD20,Imd Shared Service,100,Hired Staff,219918,01/11/2017,02/11/2017,CR482676,ADVANTAGE,126369, 825.00 
http://statistics.data.gov.uk/id/local-authority/12UE,Huntingdonshire District Council,MD20,Imd Shared Service,100,Hired Staff,220306,08/11/2017,09/11/2017,CR482676,ADVANTAGE,126428, 825.00 
http://statistics.data.gov.uk/id/local-authority/12UE,Huntingdonshire District Council,MD20,Imd Shared Service,100,Hired Staff,220796,15/11/2017,16/11/2017,CR482676,ADVANTAGE,126510, 825.00 
http://statistics.data.gov.uk/id/local-authority/12UE,Huntingdonshire District Council,MD20,Imd Shared Service,100,Hired Staff,221174,22/11/2017,23/11/2017,CR482676,ADVANTAGE,126522, 825.00 
http://statistics.data.gov.uk/id/local-authority/12UE,Huntingdonshire District Council,MU76,Finance,100,Hired Staff,219992,02/11/2017,02/11/2017,CR423917,HAYS,1008004973, 924.00 
http://statistics.data.gov.uk/id/local-authority/12UE,Huntingdonshire District Council,HB85,Benefits Management,100,Hired Staff,220389,08/11/2017,08/11/2017,CR415693,MORGAN HUNT PUBLIC UK LTD,1010573, 929.78 
http://statistics.data.gov.uk/id/local-authority/12UE,Huntingdonshire District Council,MU76,Finance,100,Hired Staff,221239,23/11/2017,23/11/2017,CR423917,HAYS,1007976922, 945.00 
http://statistics.data.gov.uk/id/local-authority/12UE,Huntingdonshire District Council,MU76,Finance,100,Hired Staff,221615,30/11/2017,30/11/2017,CR423917,HAYS,1008124182, 945.00 
http://statistics.data.gov.uk/id/local-authority/12UE,Huntingdonshire District Council,MU76,Finance,100,Hired Staff,219996,02/11/2017,02/11/2017,CR423917,HAYS,1008004974, 952.00 
http://statistics.data.gov.uk/id/local-authority/12UE,Huntingdonshire District Council,MU76,Finance,100,Hired Staff,220552,09/11/2017,09/11/2017,CR423917,HAYS,1008040853, 966.00 
http://statistics.data.gov.uk/id/local-authority/12UE,Huntingdonshire District Council,MU76,Finance,100,Hired Staff,220553,09/11/2017,09/11/2017,CR423917,HAYS,1008040852, 966.00 
http://statistics.data.gov.uk/id/local-authority/12UE,Huntingdonshire District Council,MU76,Finance,100,Hired Staff,221616,30/11/2017,30/11/2017,CR423917,HAYS,1008124180, 973.00 
http://statistics.data.gov.uk/id/local-authority/12UE,Huntingdonshire District Council,MU76,Finance,100,Hired Staff,221611,30/11/2017,30/11/2017,CR423917,HAYS,1008124181, 994.00 
http://statistics.data.gov.uk/id/local-authority/12UE,Huntingdonshire District Council,HB85,Benefits Management,100,Hired Staff,220864,16/11/2017,16/11/2017,CR415693,MORGAN HUNT PUBLIC UK LTD,1011939," 1,009.72 "
http://statistics.data.gov.uk/id/local-authority/12UE,Huntingdonshire District Council,MU69,Customer Service Centres,100,Hired Staff,219796,08/11/2017,08/11/2017,CR424715,ADVANTAGE RESOURCING,90464706," 1,016.43 "
http://statistics.data.gov.uk/id/local-authority/12UE,Huntingdonshire District Council,HB85,Benefits Management,100,Hired Staff,221227,23/11/2017,23/11/2017,CR415693,MORGAN HUNT PUBLIC UK LTD,1013354," 1,079.30 "
http://statistics.data.gov.uk/id/local-authority/12UE,Huntingdonshire District Council,HB85,Benefits Management,100,Hired Staff,220387,08/11/2017,08/11/2017,CR415693,MORGAN HUNT PUBLIC UK LTD,1009183," 1,098.53 "
http://statistics.data.gov.uk/id/local-authority/12UE,Huntingdonshire District Council,QE90,Property Development And Mgt,100,Hired Staff,219995,02/11/2017,02/11/2017,CR423917,HAYS,1008012108," 1,125.00 "
http://statistics.data.gov.uk/id/local-authority/12UE,Huntingdonshire District Council,QE90,Property Development And Mgt,100,Hired Staff,220005,02/11/2017,02/11/2017,CR423917,HAYS,1008028819," 1,125.00 "
http://statistics.data.gov.uk/id/local-authority/12UE,Huntingdonshire District Council,QE90,Property Development And Mgt,100,Hired Staff,220987,16/11/2017,16/11/2017,CR423917,HAYS,1008067094," 1,125.00 "
http://statistics.data.gov.uk/id/local-authority/12UE,Huntingdonshire District Council,QE90,Property Development And Mgt,100,Hired Staff,221598,30/11/2017,30/11/2017,CR423917,HAYS,1008088224," 1,125.00 "
http://statistics.data.gov.uk/id/local-authority/12UE,Huntingdonshire District Council,QE90,Property Development And Mgt,100,Hired Staff,221612,30/11/2017,30/11/2017,CR423917,HAYS,1008123399," 1,125.00 "
http://statistics.data.gov.uk/id/local-authority/12UE,Huntingdonshire District Council,MU76,Finance,100,Hired Staff,221238,23/11/2017,23/11/2017,CR423917,HAYS,1007976921," 1,141.00 "
http://statistics.data.gov.uk/id/local-authority/12UE,Huntingdonshire District Council,QE90,Property Development And Mgt,100,Hired Staff,219985,02/11/2017,02/11/2017,CR424684,PRIME PEOPLE,SI-00001245," 1,200.00 "
http://statistics.data.gov.uk/id/local-authority/12UE,Huntingdonshire District Council,ER01,Domestic Waste Collection,100,Hired Staff,219804,15/11/2017,15/11/2017,CR416827,STAFFLINE GROUP,IN0634890," 1,223.04 "
http://statistics.data.gov.uk/id/local-authority/12UE,Huntingdonshire District Council,EQ02,Recycling Collections,100,Hired Staff,219342,02/11/2017,02/11/2017,CR416827,STAFFLINE GROUP,IN0631745," 1,293.78 "
http://statistics.data.gov.uk/id/local-authority/12UE,Huntingdonshire District Council,MD20,Imd Shared Service,100,Hired Staff,221180,22/11/2017,23/11/2017,CR454029,PREMIER IT RECRUITMENT LTD,R024083," 1,295.00 "
http://statistics.data.gov.uk/id/local-authority/12UE,Huntingdonshire District Council,QE90,Property Development And Mgt,100,Hired Staff,220851,16/11/2017,16/11/2017,CR424684,PRIME PEOPLE,SI-00001476," 1,350.00 "
http://statistics.data.gov.uk/id/local-authority/12UE,Huntingdonshire District Council,QE90,Property Development And Mgt,100,Hired Staff,220403,09/11/2017,09/11/2017,CR455208,CFL ESTATE SERVICES,HDC075," 1,470.00 "
http://statistics.data.gov.uk/id/local-authority/12UE,Huntingdonshire District Council,MD20,Imd Shared Service,100,Hired Staff,220303,08/11/2017,09/11/2017,CR424731,L A INTERNATIONAL COMPUTER CONSULTANTS LTD,LA460920," 1,500.00 "
http://statistics.data.gov.uk/id/local-authority/12UE,Huntingdonshire District Council,QE90,Property Development And Mgt,100,Hired Staff,220003,02/11/2017,02/11/2017,CR424684,PRIME PEOPLE,SI-00001371," 1,500.00 "
http://statistics.data.gov.uk/id/local-authority/12UE,Huntingdonshire District Council,QE90,Property Development And Mgt,100,Hired Staff,220555,09/11/2017,09/11/2017,CR423917,HAYS,1008046963," 1,525.00 "
http://statistics.data.gov.uk/id/local-authority/12UE,Huntingdonshire District Council,QE90,Property Development And Mgt,100,Hired Staff,220556,09/11/2017,09/11/2017,CR423917,HAYS,1008046964," 1,525.00 "
http://statistics.data.gov.uk/id/local-authority/12UE,Huntingdonshire District Council,ER01,Domestic Waste Collection,100,Hired Staff,219802,15/11/2017,15/11/2017,CR416827,STAFFLINE GROUP,IN0633474," 1,579.66 "
http://statistics.data.gov.uk/id/local-authority/12UE,Huntingdonshire District Council,EQ02,Recycling Collections,100,Hired Staff,219800,15/11/2017,15/11/2017,CR416827,STAFFLINE GROUP,IN0633473," 1,589.27 "
http://statistics.data.gov.uk/id/local-authority/12UE,Huntingdonshire District Council,MD20,Imd Shared Service,100,Hired Staff,221508,29/11/2017,30/11/2017,CR454029,PREMIER IT RECRUITMENT LTD,R024306," 1,665.00 "
http://statistics.data.gov.uk/id/local-authority/12UE,Huntingdonshire District Council,ER01,Domestic Waste Collection,100,Hired Staff,219343,02/11/2017,02/11/2017,CR416827,STAFFLINE GROUP,IN0631746," 1,686.65 "
http://statistics.data.gov.uk/id/local-authority/12UE,Huntingdonshire District Council,MD20,Imd Shared Service,100,Hired Staff,220797,15/11/2017,16/11/2017,CR424731,L A INTERNATIONAL COMPUTER CONSULTANTS LTD,LA462917," 1,704.50 "
http://statistics.data.gov.uk/id/local-authority/12UE,Huntingdonshire District Council,CH45,Transformation - Customers,100,Hired Staff,221507,29/11/2017,29/11/2017,CR423917,HAYS,1008076987," 1,787.50 "
http://statistics.data.gov.uk/id/local-authority/12UE,Huntingdonshire District Council,MU76,Finance,100,Hired Staff,219994,02/11/2017,02/11/2017,CR423917,HAYS,1008010371," 1,843.90 "
http://statistics.data.gov.uk/id/local-authority/12UE,Huntingdonshire District Council,MU76,Finance,100,Hired Staff,220006,02/11/2017,02/11/2017,CR423917,HAYS,1008030191," 1,843.90 "
http://statistics.data.gov.uk/id/local-authority/12UE,Huntingdonshire District Council,MU76,Finance,100,Hired Staff,220558,09/11/2017,09/11/2017,CR423917,HAYS,1008048889," 1,843.90 "
http://statistics.data.gov.uk/id/local-authority/12UE,Huntingdonshire District Council,MU76,Finance,100,Hired Staff,220984,16/11/2017,16/11/2017,CR423917,HAYS,1008066226," 1,843.90 "
http://statistics.data.gov.uk/id/local-authority/12UE,Huntingdonshire District Council,MU76,Finance,100,Hired Staff,221240,23/11/2017,23/11/2017,CR423917,HAYS,1007971200," 1,843.90 "
http://statistics.data.gov.uk/id/local-authority/12UE,Huntingdonshire District Council,MU76,Finance,100,Hired Staff,221597,30/11/2017,30/11/2017,CR423917,HAYS,1008089494," 1,843.90 "
http://statistics.data.gov.uk/id/local-authority/12UE,Huntingdonshire District Council,MU76,Finance,100,Hired Staff,221613,30/11/2017,30/11/2017,CR423917,HAYS,1008124348," 1,843.90 "
http://statistics.data.gov.uk/id/local-authority/12UE,Huntingdonshire District Council,MD20,Imd Shared Service,100,Hired Staff,219924,01/11/2017,02/11/2017,CR454029,PREMIER IT RECRUITMENT LTD,R023701," 1,850.00 "
http://statistics.data.gov.uk/id/local-authority/12UE,Huntingdonshire District Council,MD20,Imd Shared Service,100,Hired Staff,220310,08/11/2017,09/11/2017,CR454029,PREMIER IT RECRUITMENT LTD,R023835," 1,850.00 "
http://statistics.data.gov.uk/id/local-authority/12UE,Huntingdonshire District Council,MD20,Imd Shared Service,100,Hired Staff,220312,08/11/2017,09/11/2017,CR454029,PREMIER IT RECRUITMENT LTD,R023147," 1,850.00 "
http://statistics.data.gov.uk/id/local-authority/12UE,Huntingdonshire District Council,MD20,Imd Shared Service,100,Hired Staff,220313,08/11/2017,09/11/2017,CR454029,PREMIER IT RECRUITMENT LTD,R023251," 1,850.00 "
http://statistics.data.gov.uk/id/local-authority/12UE,Huntingdonshire District Council,MD20,Imd Shared Service,100,Hired Staff,221181,22/11/2017,23/11/2017,CR454029,PREMIER IT RECRUITMENT LTD,R024181," 1,850.00 "
http://statistics.data.gov.uk/id/local-authority/12UE,Huntingdonshire District Council,MD20,Imd Shared Service,100,Hired Staff,221188,22/11/2017,23/11/2017,CR454029,PREMIER IT RECRUITMENT LTD,R023955," 1,850.00 "
http://statistics.data.gov.uk/id/local-authority/12UE,Huntingdonshire District Council,EQ02,Recycling Collections,100,Hired Staff,220993,22/11/2017,23/11/2017,CR416827,STAFFLINE GROUP,IN0637990," 1,871.39 "
http://statistics.data.gov.uk/id/local-authority/12UE,Huntingdonshire District Council,ES01,Street Cleansing,100,Hired Staff,220999,22/11/2017,23/11/2017,CR416827,STAFFLINE GROUP,IN0637993," 2,059.57 "
http://statistics.data.gov.uk/id/local-authority/12UE,Huntingdonshire District Council,ES01,Street Cleansing,100,Hired Staff,219806,02/11/2017,02/11/2017,CR416827,STAFFLINE GROUP,IN0633476," 2,068.96 "
http://statistics.data.gov.uk/id/local-authority/12UE,Huntingdonshire District Council,QE90,Property Development And Mgt,100,Hired Staff,219997,02/11/2017,02/11/2017,CR423917,HAYS,PERSONAL DATA REDACTED," 2,080.00 "
http://statistics.data.gov.uk/id/local-authority/12UE,Huntingdonshire District Council,QE90,Property Development And Mgt,100,Hired Staff,220007,02/11/2017,02/11/2017,CR423917,HAYS,1008026082," 2,080.00 "
http://statistics.data.gov.uk/id/local-authority/12UE,Huntingdonshire District Council,QE90,Property Development And Mgt,100,Hired Staff,221234,23/11/2017,23/11/2017,CR423917,HAYS,1007875634," 2,080.00 "
http://statistics.data.gov.uk/id/local-authority/12UE,Huntingdonshire District Council,MD20,Imd Shared Service,100,Hired Staff,220308,08/11/2017,09/11/2017,CR482676,ADVANTAGE,126405," 2,100.00 "
http://statistics.data.gov.uk/id/local-authority/12UE,Huntingdonshire District Council,EQ02,Recycling Collections,100,Hired Staff,219801,15/11/2017,15/11/2017,CR416827,STAFFLINE GROUP,IN0634889," 2,109.00 "
http://statistics.data.gov.uk/id/local-authority/12UE,Huntingdonshire District Council,ES01,Street Cleansing,100,Hired Staff,220998,22/11/2017,23/11/2017,CR416827,STAFFLINE GROUP,IN0636487," 2,218.97 "
http://statistics.data.gov.uk/id/local-authority/12UE,Huntingdonshire District Council,EQ02,Recycling Collections,100,Hired Staff,220992,22/11/2017,23/11/2017,CR416827,STAFFLINE GROUP,IN0636484," 2,235.78 "
http://statistics.data.gov.uk/id/local-authority/12UE,Huntingdonshire District Council,ES01,Street Cleansing,100,Hired Staff,221068,22/11/2017,23/11/2017,CR416827,STAFFLINE GROUP,IN0639682," 2,294.72 "
http://statistics.data.gov.uk/id/local-authority/12UE,Huntingdonshire District Council,ES01,Street Cleansing,100,Hired Staff,219345,02/11/2017,02/11/2017,CR416827,STAFFLINE GROUP,IN0631748," 2,313.59 "
http://statistics.data.gov.uk/id/local-authority/12UE,Huntingdonshire District Council,ES01,Street Cleansing,100,Hired Staff,219807,02/11/2017,02/11/2017,CR416827,STAFFLINE GROUP,IN0634892," 2,349.72 "
http://statistics.data.gov.uk/id/local-authority/12UE,Huntingdonshire District Council,CH45,Transformation - Customers,100,Hired Staff,220727,14/11/2017,14/11/2017,CR423917,HAYS,10080443422," 2,502.50 "
http://statistics.data.gov.uk/id/local-authority/12UE,Huntingdonshire District Council,CH45,Transformation - Customers,100,Hired Staff,221506,29/11/2017,29/11/2017,CR423917,HAYS,1008044322," 2,502.50 "
http://statistics.data.gov.uk/id/local-authority/12UE,Huntingdonshire District Council,QE90,Property Development And Mgt,100,Hired Staff,220559,09/11/2017,09/11/2017,CR423917,HAYS,1008043432," 2,600.00 "
http://statistics.data.gov.uk/id/local-authority/12UE,Huntingdonshire District Council,QE90,Property Development And Mgt,100,Hired Staff,220985,16/11/2017,16/11/2017,CR423917,HAYS,1008069677," 2,600.00 "
http://statistics.data.gov.uk/id/local-authority/12UE,Huntingdonshire District Council,QE90,Property Development And Mgt,100,Hired Staff,221236,23/11/2017,23/11/2017,CR423917,HAYS,1007968104," 2,600.00 "
http://statistics.data.gov.uk/id/local-authority/12UE,Huntingdonshire District Council,QE90,Property Development And Mgt,100,Hired Staff,221596,30/11/2017,30/11/2017,CR423917,HAYS,1008090838," 2,600.00 "
http://statistics.data.gov.uk/id/local-authority/12UE,Huntingdonshire District Council,QE90,Property Development And Mgt,100,Hired Staff,221614,30/11/2017,30/11/2017,CR423917,HAYS,1008126299," 2,600.00 "
http://statistics.data.gov.uk/id/local-authority/12UE,Huntingdonshire District Council,MD20,Imd Shared Service,100,Hired Staff,219919,01/11/2017,02/11/2017,CR482676,ADVANTAGE,126358," 2,625.00 "
http://statistics.data.gov.uk/id/local-authority/12UE,Huntingdonshire District Council,MD20,Imd Shared Service,100,Hired Staff,220794,15/11/2017,16/11/2017,CR482676,ADVANTAGE,126476," 2,625.00 "
http://statistics.data.gov.uk/id/local-authority/12UE,Huntingdonshire District Council,MD20,Imd Shared Service,100,Hired Staff,221175,22/11/2017,23/11/2017,CR482676,ADVANTAGE,126540," 2,625.00 "
http://statistics.data.gov.uk/id/local-authority/12UE,Huntingdonshire District Council,MD20,Imd Shared Service,100,Hired Staff,221515,29/11/2017,30/11/2017,CR482676,ADVANTAGE,126595," 2,625.00 "
http://statistics.data.gov.uk/id/local-authority/12UE,Huntingdonshire District Council,ER01,Domestic Waste Collection,100,Hired Staff,220989,22/11/2017,23/11/2017,CR416827,STAFFLINE GROUP,IN0636486," 2,690.90 "
http://statistics.data.gov.uk/id/local-authority/12UE,Huntingdonshire District Council,ER01,Domestic Waste Collection,100,Hired Staff,219798,15/11/2017,15/11/2017,CR416827,STAFFLINE GROUP,IN0633475," 2,845.02 "
http://statistics.data.gov.uk/id/local-authority/12UE,Huntingdonshire District Council,ER01,Domestic Waste Collection,100,Hired Staff,219799,15/11/2017,15/11/2017,CR416827,STAFFLINE GROUP,IN0634891," 2,904.26 "
http://statistics.data.gov.uk/id/local-authority/12UE,Huntingdonshire District Council,EQ02,Recycling Collections,100,Hired Staff,221065,22/11/2017,23/11/2017,CR416827,STAFFLINE GROUP,IN0639679," 2,952.02 "
http://statistics.data.gov.uk/id/local-authority/12UE,Huntingdonshire District Council,ER01,Domestic Waste Collection,100,Hired Staff,219341,02/11/2017,02/11/2017,CR416827,STAFFLINE GROUP,IN0631747," 3,231.22 "
http://statistics.data.gov.uk/id/local-authority/12UE,Huntingdonshire District Council,MD20,Imd Shared Service,100,Hired Staff,219921,01/11/2017,02/11/2017,CR424731,L A INTERNATIONAL COMPUTER CONSULTANTS LTD,LA459034," 3,409.00 "
http://statistics.data.gov.uk/id/local-authority/12UE,Huntingdonshire District Council,MD20,Imd Shared Service,100,Hired Staff,220301,08/11/2017,09/11/2017,CR424731,L A INTERNATIONAL COMPUTER CONSULTANTS LTD,LA460918," 3,409.00 "
http://statistics.data.gov.uk/id/local-authority/12UE,Huntingdonshire District Council,MD20,Imd Shared Service,100,Hired Staff,221513,29/11/2017,30/11/2017,CR424731,L A INTERNATIONAL COMPUTER CONSULTANTS LTD,LA464490," 3,409.00 "
http://statistics.data.gov.uk/id/local-authority/12UE,Huntingdonshire District Council,MD20,Imd Shared Service,100,Hired Staff,220316,08/11/2017,09/11/2017,CR424715,ADVANTAGE RESOURCING,90465812," 11,232.00 "
http://statistics.data.gov.uk/id/local-authority/12UE,Huntingdonshire District Council,HB85,Benefits Management,120,Recruitment Costs,617161,06/11/2017,06/11/2017,CR416513,PERSONAL DATA REDACTED,82761125,-591.20 
http://statistics.data.gov.uk/id/local-authority/12UE,Huntingdonshire District Council,QA03,Business & Enterprise Support,120,Recruitment Costs,221606,30/11/2017,30/11/2017,CR425026,JOBSITE.CO.UK,882229, 250.00 
http://statistics.data.gov.uk/id/local-authority/12UE,Huntingdonshire District Council,QM01,Huntingdon Market,120,Recruitment Costs,220746,16/11/2017,16/11/2017,CR403271,ARCHANT HERTS AND CAMBS,82778287, 308.47 
http://statistics.data.gov.uk/id/local-authority/12UE,Huntingdonshire District Council,LB30,S&A Lifestyles Gen Mng'T,120,Recruitment Costs,220325,08/11/2017,09/11/2017,CR004418,THE LEISURE MEDIA COMPANY LTD,60582, 397.00 
http://statistics.data.gov.uk/id/local-authority/12UE,Huntingdonshire District Council,ER01,Domestic Waste Collection,120,Recruitment Costs,220169,03/11/2017,03/11/2017,CR403271,ARCHANT HERTS AND CAMBS,82783582, 764.00 
http://statistics.data.gov.uk/id/local-authority/12UE,Huntingdonshire District Council,EG06,Grounds Maintenance,120,Recruitment Costs,220834,15/11/2017,16/11/2017,CR403271,ARCHANT HERTS AND CAMBS,82792766, 765.10 
http://statistics.data.gov.uk/id/local-authority/12UE,Huntingdonshire District Council,QM90,Markets Management,120,Recruitment Costs,220747,16/11/2017,16/11/2017,CR403271,ARCHANT HERTS AND CAMBS,82774712, 824.70 
http://statistics.data.gov.uk/id/local-authority/12UE,Huntingdonshire District Council,ER01,Domestic Waste Collection,120,Recruitment Costs,220747,16/11/2017,16/11/2017,CR403271,ARCHANT HERTS AND CAMBS,82774712, 968.40 
http://statistics.data.gov.uk/id/local-authority/12UE,Huntingdonshire District Council,ER01,Domestic Waste Collection,120,Recruitment Costs,220834,15/11/2017,16/11/2017,CR403271,ARCHANT HERTS AND CAMBS,82792766," 1,733.50 "
http://statistics.data.gov.uk/id/local-authority/12UE,Huntingdonshire District Council,MU16,Development Management,120,Recruitment Costs,220405,09/11/2017,09/11/2017,CR479500,HAYMARKET MEDIA GROUP LTD,50117332," 2,079.00 "
http://statistics.data.gov.uk/id/local-authority/12UE,Huntingdonshire District Council,MD20,Imd Shared Service,120,Recruitment Costs,220792,15/11/2017,16/11/2017,CR425010,ROC RESEARCH LIMITED,1836," 5,107.80 "
http://statistics.data.gov.uk/id/local-authority/12UE,Huntingdonshire District Council,MD20,Imd Shared Service,120,Recruitment Costs,221194,22/11/2017,23/11/2017,CR454029,PREMIER IT RECRUITMENT LTD,R024144," 5,107.80 "
http://statistics.data.gov.uk/id/local-authority/12UE,Huntingdonshire District Council,MD20,Imd Shared Service,120,Recruitment Costs,220793,15/11/2017,16/11/2017,CR030165,CAPITA RESOURCING LTD,WN70320609," 6,750.00 "
http://statistics.data.gov.uk/id/local-authority/12UE,Huntingdonshire District Council,MH07,Hr & Payroll Services,130,Training,220820,15/11/2017,15/11/2017,CR409469,BRITISH RED CROSS SOCIETY,N1157025, 269.00 
http://statistics.data.gov.uk/id/local-authority/12UE,Huntingdonshire District Council,MH07,Hr & Payroll Services,130,Training,221222,22/11/2017,23/11/2017,CR477425,ROB FLETCHER LAND BASED TRAINING & ASSESSMENT,2700, 330.00 
http://statistics.data.gov.uk/id/local-authority/12UE,Huntingdonshire District Council,MH07,Hr & Payroll Services,130,Training,221531,29/11/2017,29/11/2017,CR411252,CIRIA,39621, 470.25 
http://statistics.data.gov.uk/id/local-authority/12UE,Huntingdonshire District Council,KC80,Cctv Shared Service Hosting,130,Training,220013,03/11/2017,09/11/2017,CR455987,THE CCTV TRAINING ACADEMY,291, 490.00 
http://statistics.data.gov.uk/id/local-authority/12UE,Huntingdonshire District Council,KC80,Cctv Shared Service Hosting,130,Training,220013,03/11/2017,09/11/2017,CR455987,THE CCTV TRAINING ACADEMY,291, 490.00 
http://statistics.data.gov.uk/id/local-authority/12UE,Huntingdonshire District Council,MH07,Hr & Payroll Services,130,Training,220814,15/11/2017,15/11/2017,CR455603,INSTITUTE OF SWIMMING LTD,IOSINV014083, 510.00 
http://statistics.data.gov.uk/id/local-authority/12UE,Huntingdonshire District Council,MH07,Hr & Payroll Services,130,Training,220328,08/11/2017,08/11/2017,CR408920,APP USER GROUP,17183062 APP, 540.00 
http://statistics.data.gov.uk/id/local-authority/12UE,Huntingdonshire District Council,MH07,Hr & Payroll Services,130,Training,221516,29/11/2017,29/11/2017,CR455603,INSTITUTE OF SWIMMING LTD,IOSINV014347, 598.00 
http://statistics.data.gov.uk/id/local-authority/12UE,Huntingdonshire District Council,MH07,Hr & Payroll Services,130,Training,220346,08/11/2017,08/11/2017,CR424997,WATER FITNESS LIMITED,WF0727, 700.00 
http://statistics.data.gov.uk/id/local-authority/12UE,Huntingdonshire District Council,MH07,Hr & Payroll Services,130,Training,220338,08/11/2017,08/11/2017,CR478241,GENESIS  LIFTS LTD,30367, 800.00 
http://statistics.data.gov.uk/id/local-authority/12UE,Huntingdonshire District Council,MH07,Hr & Payroll Services,130,Training,616898,02/11/2017,02/11/2017,CR416546,BRECKLAND COUNCIL,852944," 1,500.00 "
http://statistics.data.gov.uk/id/local-authority/12UE,Huntingdonshire District Council,MH07,Hr & Payroll Services,130,Training,221223,22/11/2017,23/11/2017,CR477425,ROB FLETCHER LAND BASED TRAINING & ASSESSMENT,2682," 1,820.00 "
http://statistics.data.gov.uk/id/local-authority/12UE,Huntingdonshire District Council,MD22,Ccity Recharge Invoices,130,Training,220723,14/11/2017,16/11/2017,CR017896,CAMBRIDGE CITY COUNCIL,198661," 1,920.00 "
http://statistics.data.gov.uk/id/local-authority/12UE,Huntingdonshire District Council,MH07,Hr & Payroll Services,130,Training,221538,29/11/2017,29/11/2017,CR425025,ROBUST IT,RBLB171120," 2,460.00 "
http://statistics.data.gov.uk/id/local-authority/12UE,Huntingdonshire District Council,MH07,Hr & Payroll Services,144,Childcare Admin Vouchers,221543,29/11/2017,29/11/2017,CR412205,COMPUTERSHARE VOUCHERS LTD,C=0002621342, 271.11 
http://statistics.data.gov.uk/id/local-authority/12UE,Huntingdonshire District Council,XJ02,Ins Employees Public Liability,162,Insurance Employers,220551,09/11/2017,09/11/2017,CR424831,BLM,V2326671\P00014," 1,775.16 "
http://statistics.data.gov.uk/id/local-authority/12UE,Huntingdonshire District Council,ER01,Domestic Waste Collection,163,Protective Clothing & Uniforms,220212,06/11/2017,09/11/2017,CR000409,HOWSAFE LTD,SIN0643823, 409.92 
http://statistics.data.gov.uk/id/local-authority/12UE,Huntingdonshire District Council,ER01,Domestic Waste Collection,163,Protective Clothing & Uniforms,220682,15/11/2017,15/11/2017,CR423139,SMI GROUP,438457, 651.90 
http://statistics.data.gov.uk/id/local-authority/12UE,Huntingdonshire District Council,ER01,Domestic Waste Collection,163,Protective Clothing & Uniforms,219754,15/11/2017,15/11/2017,CR423139,SMI GROUP,434953," 2,179.05 "
http://statistics.data.gov.uk/id/local-authority/12UE,Huntingdonshire District Council,MD22,Ccity Recharge Invoices,203,Other I T Hardware,221160,22/11/2017,23/11/2017,CR000242,INSIGHT DIRECT UK LTD,3637513, 279.84 
http://statistics.data.gov.uk/id/local-authority/12UE,Huntingdonshire District Council,TC90,Car Parks Operational Mgt,203,Other I T Hardware,220349,08/11/2017,09/11/2017,CR000242,INSIGHT DIRECT UK LTD,3619699, 279.84 
http://statistics.data.gov.uk/id/local-authority/12UE,Huntingdonshire District Council,MD23,Scdc Recharge Invoices,203,Other I T Hardware,221167,22/11/2017,23/11/2017,CR479055,PLAYFORDS LTD,14818, 491.10 
http://statistics.data.gov.uk/id/local-authority/12UE,Huntingdonshire District Council,MD20,Imd Shared Service,203,Other I T Hardware,221505,29/11/2017,30/11/2017,CR422733,BIST,SINV00119945, 560.00 
http://statistics.data.gov.uk/id/local-authority/12UE,Huntingdonshire District Council,MD22,Ccity Recharge Invoices,203,Other I T Hardware,220360,08/11/2017,09/11/2017,CR404499,EACS LTD,SIN106973, 600.00 
http://statistics.data.gov.uk/id/local-authority/12UE,Huntingdonshire District Council,CH40,Transformation Programme,203,Other I T Hardware,221156,22/11/2017,23/11/2017,CR000242,INSIGHT DIRECT UK LTD,3635839, 720.00 
http://statistics.data.gov.uk/id/local-authority/12UE,Huntingdonshire District Council,MD20,Imd Shared Service,203,Other I T Hardware,221500,29/11/2017,30/11/2017,CR000242,INSIGHT DIRECT UK LTD,3613939, 720.00 
http://statistics.data.gov.uk/id/local-authority/12UE,Huntingdonshire District Council,MD20,Imd Shared Service,203,Other I T Hardware,221504,29/11/2017,30/11/2017,CR000242,INSIGHT DIRECT UK LTD,3627494, 720.00 
http://statistics.data.gov.uk/id/local-authority/12UE,Huntingdonshire District Council,MD22,Ccity Recharge Invoices,203,Other I T Hardware,219903,01/11/2017,02/11/2017,CR422733,BIST,SINV00115825, 824.00 
http://statistics.data.gov.uk/id/local-authority/12UE,Huntingdonshire District Council,MD20,Imd Shared Service,203,Other I T Hardware,219890,01/11/2017,02/11/2017,CR000242,INSIGHT DIRECT UK LTD,3611262, 920.00 
http://statistics.data.gov.uk/id/local-authority/12UE,Huntingdonshire District Council,MD22,Ccity Recharge Invoices,203,Other I T Hardware,220813,15/11/2017,16/11/2017,CR424771,IRON MOUNTAIN UK LIMITED,18156308, 970.55 
http://statistics.data.gov.uk/id/local-authority/12UE,Huntingdonshire District Council,MD22,Ccity Recharge Invoices,203,Other I T Hardware,220360,08/11/2017,09/11/2017,CR404499,EACS LTD,SIN106973," 1,320.00 "
http://statistics.data.gov.uk/id/local-authority/12UE,Huntingdonshire District Council,MD23,Scdc Recharge Invoices,203,Other I T Hardware,220763,15/11/2017,16/11/2017,CR000242,INSIGHT DIRECT UK LTD,3633424," 1,440.00 "
http://statistics.data.gov.uk/id/local-authority/12UE,Huntingdonshire District Council,MD20,Imd Shared Service,203,Other I T Hardware,219890,01/11/2017,02/11/2017,CR000242,INSIGHT DIRECT UK LTD,3611262," 1,840.00 "
http://statistics.data.gov.uk/id/local-authority/12UE,Huntingdonshire District Council,MD20,Imd Shared Service,203,Other I T Hardware,221502,29/11/2017,30/11/2017,CR000242,INSIGHT DIRECT UK LTD,3647408," 1,840.00 "
http://statistics.data.gov.uk/id/local-authority/12UE,Huntingdonshire District Council,MD23,Scdc Recharge Invoices,203,Other I T Hardware,221189,22/11/2017,23/11/2017,CR423396,GALTEC SOLUTIONS LTD,6789," 2,212.84 "
http://statistics.data.gov.uk/id/local-authority/12UE,Huntingdonshire District Council,MD20,Imd Shared Service,203,Other I T Hardware,219904,01/11/2017,02/11/2017,CR000242,INSIGHT DIRECT UK LTD,3566224," 4,600.00 "
http://statistics.data.gov.uk/id/local-authority/12UE,Huntingdonshire District Council,MD23,Scdc Recharge Invoices,206,Software,219917,01/11/2017,02/11/2017,CR424742,ENFORCE TECHNOLOGY,755,-995.00 
http://statistics.data.gov.uk/id/local-authority/12UE,Huntingdonshire District Council,MD23,Scdc Recharge Invoices,206,Software,220340,08/11/2017,09/11/2017,CR422020,BOTTOMLINE TECHNOLOGIES LTD,UKARCN-00000342,-349.50 
http://statistics.data.gov.uk/id/local-authority/12UE,Huntingdonshire District Council,MD20,Imd Shared Service,206,Software,221498,29/11/2017,30/11/2017,CR424062,SOLARWINDS SOFTWARE EUROPE LTD (IRELAND),IE193504, 308.00 
http://statistics.data.gov.uk/id/local-authority/12UE,Huntingdonshire District Council,LN90,Site & Centre Management,206,Software,221416,29/11/2017,30/11/2017,CR478176,BRAMBLE HUB LTD,7474, 333.33 
http://statistics.data.gov.uk/id/local-authority/12UE,Huntingdonshire District Council,LR90,Site & Centre Management,206,Software,221416,29/11/2017,30/11/2017,CR478176,BRAMBLE HUB LTD,7474, 333.33 
http://statistics.data.gov.uk/id/local-authority/12UE,Huntingdonshire District Council,LS90,Site & Centre Management,206,Software,221416,29/11/2017,30/11/2017,CR478176,BRAMBLE HUB LTD,7474, 333.33 
http://statistics.data.gov.uk/id/local-authority/12UE,Huntingdonshire District Council,LP90,Site & Centre Management,206,Software,221416,29/11/2017,30/11/2017,CR478176,BRAMBLE HUB LTD,7474, 333.34 
http://statistics.data.gov.uk/id/local-authority/12UE,Huntingdonshire District Council,LQ90,Site & Centre Management,206,Software,221416,29/11/2017,30/11/2017,CR478176,BRAMBLE HUB LTD,7474, 333.34 
http://statistics.data.gov.uk/id/local-authority/12UE,Huntingdonshire District Council,MD22,Ccity Recharge Invoices,206,Software,221527,29/11/2017,30/11/2017,CR028925,NORTHGATEPUBLIC SERVICES UK LTD,91398914, 408.00 
http://statistics.data.gov.uk/id/local-authority/12UE,Huntingdonshire District Council,MD23,Scdc Recharge Invoices,206,Software,220354,08/11/2017,09/11/2017,CR424742,ENFORCE TECHNOLOGY,6799, 480.00 
http://statistics.data.gov.uk/id/local-authority/12UE,Huntingdonshire District Council,MD22,Ccity Recharge Invoices,206,Software,221168,22/11/2017,23/11/2017,CR031918,PHOENIX SOFTWARE LTD,OP/1803383, 685.26 
http://statistics.data.gov.uk/id/local-authority/12UE,Huntingdonshire District Council,MD24,Hdc Recharge Invoices,206,Software,220781,15/11/2017,16/11/2017,CR031918,PHOENIX SOFTWARE LTD,OP/1809474, 813.66 
http://statistics.data.gov.uk/id/local-authority/12UE,Huntingdonshire District Council,MD23,Scdc Recharge Invoices,206,Software,221519,29/11/2017,30/11/2017,CR415826,CIVICA UK LTD,M/RB047427, 963.48 
http://statistics.data.gov.uk/id/local-authority/12UE,Huntingdonshire District Council,MD23,Scdc Recharge Invoices,206,Software,219899,01/11/2017,02/11/2017,CR424742,ENFORCE TECHNOLOGY,6660, 995.00 
http://statistics.data.gov.uk/id/local-authority/12UE,Huntingdonshire District Council,ER01,Domestic Waste Collection,206,Software,219764,06/11/2017,09/11/2017,CR001981,DTS SOLUTIONS (UK) LTD,S000615," 1,350.00 "
http://statistics.data.gov.uk/id/local-authority/12UE,Huntingdonshire District Council,MD22,Ccity Recharge Invoices,206,Software,220339,08/11/2017,09/11/2017,CR028925,NORTHGATEPUBLIC SERVICES UK LTD,91397646," 1,600.00 "
http://statistics.data.gov.uk/id/local-authority/12UE,Huntingdonshire District Council,MD20,Imd Shared Service,206,Software,221498,29/11/2017,30/11/2017,CR424062,SOLARWINDS SOFTWARE EUROPE LTD (IRELAND),IE193504," 1,694.00 "
http://statistics.data.gov.uk/id/local-authority/12UE,Huntingdonshire District Council,MU95,Vehicle Maintenance,206,Software,219770,03/11/2017,03/11/2017,CR477454,CHEVIN FLEET SOLUTIONS,193226," 1,900.40 "
http://statistics.data.gov.uk/id/local-authority/12UE,Huntingdonshire District Council,MD23,Scdc Recharge Invoices,206,Software,220343,08/11/2017,09/11/2017,CR424755,ORCHARD INFORMATION SYSTEMS LTD,SLMR/00011208," 1,920.48 "
http://statistics.data.gov.uk/id/local-authority/12UE,Huntingdonshire District Council,MD23,Scdc Recharge Invoices,206,Software,220353,08/11/2017,09/11/2017,CR424742,ENFORCE TECHNOLOGY,6800," 2,005.00 "
http://statistics.data.gov.uk/id/local-authority/12UE,Huntingdonshire District Council,MD22,Ccity Recharge Invoices,206,Software,221526,29/11/2017,30/11/2017,CR028925,NORTHGATEPUBLIC SERVICES UK LTD,91398916," 2,040.00 "
http://statistics.data.gov.uk/id/local-authority/12UE,Huntingdonshire District Council,MD20,Imd Shared Service,206,Software,221498,29/11/2017,30/11/2017,CR424062,SOLARWINDS SOFTWARE EUROPE LTD (IRELAND),IE193504," 2,657.00 "
http://statistics.data.gov.uk/id/local-authority/12UE,Huntingdonshire District Council,MD23,Scdc Recharge Invoices,206,Software,220354,08/11/2017,09/11/2017,CR424742,ENFORCE TECHNOLOGY,6799," 4,215.20 "
http://statistics.data.gov.uk/id/local-authority/12UE,Huntingdonshire District Council,MD24,Hdc Recharge Invoices,206,Software,219895,01/11/2017,02/11/2017,CR031918,PHOENIX SOFTWARE LTD,OP/1808416," 5,656.16 "
http://statistics.data.gov.uk/id/local-authority/12UE,Huntingdonshire District Council,HB85,Benefits Management,206,Software,221489,28/11/2017,29/11/2017,CR028925,NORTHGATEPUBLIC SERVICES UK LTD,91398819," 6,899.03 "
http://statistics.data.gov.uk/id/local-authority/12UE,Huntingdonshire District Council,MD24,Hdc Recharge Invoices,206,Software,219895,01/11/2017,02/11/2017,CR031918,PHOENIX SOFTWARE LTD,OP/1808416," 7,313.50 "
http://statistics.data.gov.uk/id/local-authority/12UE,Huntingdonshire District Council,MD22,Ccity Recharge Invoices,206,Software,220357,08/11/2017,09/11/2017,CR422246,SOFTCAT,INV01756160," 7,878.00 "
http://statistics.data.gov.uk/id/local-authority/12UE,Huntingdonshire District Council,MD22,Ccity Recharge Invoices,206,Software,220724,14/11/2017,16/11/2017,CR017896,CAMBRIDGE CITY COUNCIL,198662," 22,278.40 "
http://statistics.data.gov.uk/id/local-authority/12UE,Huntingdonshire District Council,MD23,Scdc Recharge Invoices,206,Software,221190,22/11/2017,23/11/2017,CR415826,CIVICA UK LTD,156279," 70,500.00 "
http://statistics.data.gov.uk/id/local-authority/12UE,Huntingdonshire District Council,PA11,Neighbourhood Planning,220,Printing (External),220832,15/11/2017,15/11/2017,CR404724,VICTOIRE PRESS LTD,80227, 377.00 
http://statistics.data.gov.uk/id/local-authority/12UE,Huntingdonshire District Council,PA11,Neighbourhood Planning,220,Printing (External),220658,13/11/2017,13/11/2017,CR416581,SCI PRINT LIMITED,," 2,138.72 "
http://statistics.data.gov.uk/id/local-authority/12UE,Huntingdonshire District Council,CH43,Transformation - Business,225,Stationery,220656,13/11/2017,13/11/2017,CR006566,ESPO,, 336.00 
http://statistics.data.gov.uk/id/local-authority/12UE,Huntingdonshire District Council,MD22,Ccity Recharge Invoices,225,Stationery,220723,14/11/2017,16/11/2017,CR017896,CAMBRIDGE CITY COUNCIL,198661, 595.87 
http://statistics.data.gov.uk/id/local-authority/12UE,Huntingdonshire District Council,MU26,Facilities,231,Postage,220285,08/11/2017,09/11/2017,CR415958,BROXAP LTD,INV218688, 260.00 
http://statistics.data.gov.uk/id/local-authority/12UE,Huntingdonshire District Council,GM12,Hc & Ph Drivers Licences,231,Postage,220626,13/11/2017,14/11/2017,CR027083,ROYAL MAIL,9055459162, 455.53 
http://statistics.data.gov.uk/id/local-authority/12UE,Huntingdonshire District Council,HB85,Benefits Management,231,Postage,220317,08/11/2017,09/11/2017,CR424061,WHISTL UK LTD,IN16PS17005770, 494.99 
http://statistics.data.gov.uk/id/local-authority/12UE,Huntingdonshire District Council,HB85,Benefits Management,231,Postage,221411,27/11/2017,28/11/2017,CR027083,ROYAL MAIL,9055541879, 499.76 
http://statistics.data.gov.uk/id/local-authority/12UE,Huntingdonshire District Council,MS01,Post Handling,231,Postage,220317,08/11/2017,09/11/2017,CR424061,WHISTL UK LTD,IN16PS17005770, 530.18 
http://statistics.data.gov.uk/id/local-authority/12UE,Huntingdonshire District Council,HB85,Benefits Management,231,Postage,221413,27/11/2017,28/11/2017,CR424061,WHISTL UK LTD,IN16PS17006020, 602.06 
http://statistics.data.gov.uk/id/local-authority/12UE,Huntingdonshire District Council,MS01,Post Handling,231,Postage,220626,13/11/2017,14/11/2017,CR027083,ROYAL MAIL,9055459162, 631.16 
http://statistics.data.gov.uk/id/local-authority/12UE,Huntingdonshire District Council,MS01,Post Handling,231,Postage,221411,27/11/2017,28/11/2017,CR027083,ROYAL MAIL,9055541879, 741.36 
http://statistics.data.gov.uk/id/local-authority/12UE,Huntingdonshire District Council,MS01,Post Handling,231,Postage,50236,30/11/2017,27/12/2017,,,, 800.00 
http://statistics.data.gov.uk/id/local-authority/12UE,Huntingdonshire District Council,CE90,Electoral Registration,231,Postage,220315,08/11/2017,09/11/2017,CR027083,ROYAL MAIL,9055423153," 1,018.07 "
http://statistics.data.gov.uk/id/local-authority/12UE,Huntingdonshire District Council,MS01,Post Handling,231,Postage,221413,27/11/2017,28/11/2017,CR424061,WHISTL UK LTD,IN16PS17006020," 1,055.93 "
http://statistics.data.gov.uk/id/local-authority/12UE,Huntingdonshire District Council,MS01,Post Handling,231,Postage,220822,15/11/2017,16/11/2017,CR424061,WHISTL UK LTD,IN16PS17005919," 1,087.41 "
http://statistics.data.gov.uk/id/local-authority/12UE,Huntingdonshire District Council,CE90,Electoral Registration,231,Postage,221411,27/11/2017,28/11/2017,CR027083,ROYAL MAIL,9055541879," 1,739.08 "
http://statistics.data.gov.uk/id/local-authority/12UE,Huntingdonshire District Council,MD22,Ccity Recharge Invoices,240,Telephone &Mobile Phonecharges,220783,15/11/2017,16/11/2017,CR424934,UNIFY ENTERPRISE COMMUNICATIONS LTD,6000889502, 924.00 
http://statistics.data.gov.uk/id/local-authority/12UE,Huntingdonshire District Council,MD20,Imd Shared Service,240,Telephone &Mobile Phonecharges,220326,08/11/2017,09/11/2017,CR033120,VIRGIN MEDIA BUSINESS,7.43E+11," 1,418.12 "
http://statistics.data.gov.uk/id/local-authority/12UE,Huntingdonshire District Council,MD24,Hdc Recharge Invoices,240,Telephone &Mobile Phonecharges,221520,29/11/2017,30/11/2017,CR455799,ORANGE AIRTIME,1267036120," 1,572.25 "
http://statistics.data.gov.uk/id/local-authority/12UE,Huntingdonshire District Council,MD20,Imd Shared Service,240,Telephone &Mobile Phonecharges,50236,30/11/2017,27/12/2017,,,," 2,046.85 "
http://statistics.data.gov.uk/id/local-authority/12UE,Huntingdonshire District Council,MD22,Ccity Recharge Invoices,240,Telephone &Mobile Phonecharges,220723,14/11/2017,16/11/2017,CR017896,CAMBRIDGE CITY COUNCIL,198661," 2,227.67 "
http://statistics.data.gov.uk/id/local-authority/12UE,Huntingdonshire District Council,LP90,Site & Centre Management,248,I T Line Rental,221170,22/11/2017,23/11/2017,CR479055,PLAYFORDS LTD,14596, 326.69 
http://statistics.data.gov.uk/id/local-authority/12UE,Huntingdonshire District Council,KC80,Cctv Shared Service Hosting,248,I T Line Rental,220336,08/11/2017,09/11/2017,CR455148,VIRGIN MEDIA BUSINESS/CPSN,923469-085A, 526.08 
http://statistics.data.gov.uk/id/local-authority/12UE,Huntingdonshire District Council,MD20,Imd Shared Service,248,I T Line Rental,220326,08/11/2017,09/11/2017,CR033120,VIRGIN MEDIA BUSINESS,7.43E+11, 796.37 
http://statistics.data.gov.uk/id/local-authority/12UE,Huntingdonshire District Council,L271,Ol St Ives String Bowling,248,I T Line Rental,221169,22/11/2017,23/11/2017,CR479055,PLAYFORDS LTD,14848, 893.07 
http://statistics.data.gov.uk/id/local-authority/12UE,Huntingdonshire District Council,MD24,Hdc Recharge Invoices,248,I T Line Rental,221191,22/11/2017,23/11/2017,CR455799,ORANGE AIRTIME,1265751814," 1,579.85 "
http://statistics.data.gov.uk/id/local-authority/12UE,Huntingdonshire District Council,MD23,Scdc Recharge Invoices,248,I T Line Rental,220334,08/11/2017,09/11/2017,CR455148,VIRGIN MEDIA BUSINESS/CPSN,923186-073A," 2,751.03 "
http://statistics.data.gov.uk/id/local-authority/12UE,Huntingdonshire District Council,MD22,Ccity Recharge Invoices,248,I T Line Rental,220723,14/11/2017,16/11/2017,CR017896,CAMBRIDGE CITY COUNCIL,198661," 2,877.25 "
http://statistics.data.gov.uk/id/local-authority/12UE,Huntingdonshire District Council,MD22,Ccity Recharge Invoices,248,I T Line Rental,220724,14/11/2017,16/11/2017,CR017896,CAMBRIDGE CITY COUNCIL,198662," 7,710.13 "
http://statistics.data.gov.uk/id/local-authority/12UE,Huntingdonshire District Council,MD20,Imd Shared Service,248,I T Line Rental,220336,08/11/2017,09/11/2017,CR455148,VIRGIN MEDIA BUSINESS/CPSN,923469-085A," 9,565.96 "
http://statistics.data.gov.uk/id/local-authority/12UE,Huntingdonshire District Council,MD22,Ccity Recharge Invoices,248,I T Line Rental,220337,08/11/2017,09/11/2017,CR455148,VIRGIN MEDIA BUSINESS/CPSN,930635-045A," 9,732.25 "
http://statistics.data.gov.uk/id/local-authority/12UE,Huntingdonshire District Council,LQ21,Burgess Hall,255,Advertising/Promoting Services,220616,15/11/2017,16/11/2017,CR415764,ARCHANT HERTS & CAMBS,82792756, 256.33 
http://statistics.data.gov.uk/id/local-authority/12UE,Huntingdonshire District Council,LQ90,Site & Centre Management,255,Advertising/Promoting Services,50236,30/11/2017,27/12/2017,,,, 303.00 
http://statistics.data.gov.uk/id/local-authority/12UE,Huntingdonshire District Council,LL01,Leisure Centre Corporate Mngmt,255,Advertising/Promoting Services,221509,29/11/2017,30/11/2017,CR423394,TERM TIMES,1128/ONE, 438.75 
http://statistics.data.gov.uk/id/local-authority/12UE,Huntingdonshire District Council,LL01,Leisure Centre Corporate Mngmt,255,Advertising/Promoting Services,218287,29/11/2017,30/11/2017,CR423143,LEAD FORENSICS,222469, 501.00 
http://statistics.data.gov.uk/id/local-authority/12UE,Huntingdonshire District Council,LL01,Leisure Centre Corporate Mngmt,255,Advertising/Promoting Services,221475,29/11/2017,30/11/2017,CR415764,ARCHANT HERTS & CAMBS,82798762, 529.88 
http://statistics.data.gov.uk/id/local-authority/12UE,Huntingdonshire District Council,CE90,Electoral Registration,255,Advertising/Promoting Services,221439,27/11/2017,27/11/2017,CR478148,COMMUNITY INFORMATION SERVICES LTD,3307, 695.00 
http://statistics.data.gov.uk/id/local-authority/12UE,Huntingdonshire District Council,LL01,Leisure Centre Corporate Mngmt,255,Advertising/Promoting Services,50236,30/11/2017,27/12/2017,,,, 925.00 
http://statistics.data.gov.uk/id/local-authority/12UE,Huntingdonshire District Council,ER01,Domestic Waste Collection,255,Advertising/Promoting Services,221599,30/11/2017,30/11/2017,CR413699,SWAN PRINT LTD,18632," 3,341.00 "
http://statistics.data.gov.uk/id/local-authority/12UE,Huntingdonshire District Council,QD01,Industrial Properties,260,Ins (Service Related),219989,02/11/2017,02/11/2017,CR480345,JLT SPECIALITY LTD,CE005501, 564.69 
http://statistics.data.gov.uk/id/local-authority/12UE,Huntingdonshire District Council,MU69,Customer Service Centres,300,Building Construction,220283,08/11/2017,09/11/2017,CR424641,FOCUS CONSULTANTS 2010 LLP,944," 4,390.00 "
http://statistics.data.gov.uk/id/local-authority/12UE,Huntingdonshire District Council,MB41,Eastfield House,303,Building Mtce,219936,09/11/2017,09/11/2017,CR000483,KONE LIFTS LTD,38189186, 264.82 
http://statistics.data.gov.uk/id/local-authority/12UE,Huntingdonshire District Council,MB41,Eastfield House,303,Building Mtce,220279,08/11/2017,09/11/2017,CR410090,BRITANNIA FIRE & SECURITY LTD,74667, 275.00 
http://statistics.data.gov.uk/id/local-authority/12UE,Huntingdonshire District Council,LP90,Site & Centre Management,303,Building Mtce,221108,22/11/2017,22/11/2017,CR423380,NJL PROPERTY SOLUTIONS,OLHN0106, 291.11 
http://statistics.data.gov.uk/id/local-authority/12UE,Huntingdonshire District Council,L213,Ol Huntingdon Expansion,303,Building Mtce,220294,08/11/2017,09/11/2017,CR424006,PRP CONSULTING,480829, 300.00 
http://statistics.data.gov.uk/id/local-authority/12UE,Huntingdonshire District Council,L213,Ol Huntingdon Expansion,303,Building Mtce,220299,08/11/2017,09/11/2017,CR028041,ROGER WILSON ELECTRONICS,9889, 315.00 
http://statistics.data.gov.uk/id/local-authority/12UE,Huntingdonshire District Council,MB41,Eastfield House,303,Building Mtce,221193,23/11/2017,23/11/2017,CR403982,FIRECO LIMITED,SIN140601, 340.00 
http://statistics.data.gov.uk/id/local-authority/12UE,Huntingdonshire District Council,LP90,Site & Centre Management,303,Building Mtce,617494,15/11/2017,16/11/2017,CR403107,PERSONAL DATA REDACTED,PERSONAL DATA REDACTED, 370.60 
http://statistics.data.gov.uk/id/local-authority/12UE,Huntingdonshire District Council,LV06,Parks & Open Spaces,303,Building Mtce,220414,15/11/2017,15/11/2017,CR455166,K & M LIGHTING SERVICES LTD,3813, 375.00 
http://statistics.data.gov.uk/id/local-authority/12UE,Huntingdonshire District Council,LK90,Site & Centre Management,303,Building Mtce,221095,29/11/2017,30/11/2017,CR455707,BH DOORS & ENGINEERING LTD,22985, 394.82 
http://statistics.data.gov.uk/id/local-authority/12UE,Huntingdonshire District Council,LQ90,Site & Centre Management,303,Building Mtce,221112,29/11/2017,30/11/2017,CR423380,NJL PROPERTY SOLUTIONS,OLSI0111, 420.00 
http://statistics.data.gov.uk/id/local-authority/12UE,Huntingdonshire District Council,LN90,Site & Centre Management,303,Building Mtce,218596,15/11/2017,16/11/2017,CR422887,RICHARD SISTROM PAINTING & DECORATING,INV 023, 445.00 
http://statistics.data.gov.uk/id/local-authority/12UE,Huntingdonshire District Council,LP90,Site & Centre Management,303,Building Mtce,220650,15/11/2017,16/11/2017,CR002782,DAL-ROD UK LTD,45690, 467.00 
http://statistics.data.gov.uk/id/local-authority/12UE,Huntingdonshire District Council,LL10,The Club Alconbury Weald,303,Building Mtce,219966,08/11/2017,09/11/2017,CR424041,BRIDGE FIBRE LIMITED,33914, 475.00 
http://statistics.data.gov.uk/id/local-authority/12UE,Huntingdonshire District Council,LQ90,Site & Centre Management,303,Building Mtce,220264,08/11/2017,09/11/2017,CR422869,LEISURE INNOVATIONS LIMITED,1117003, 480.00 
http://statistics.data.gov.uk/id/local-authority/12UE,Huntingdonshire District Council,LP90,Site & Centre Management,303,Building Mtce,220686,22/11/2017,22/11/2017,CR40187,JSA LEISURE LTD,80737, 495.50 
http://statistics.data.gov.uk/id/local-authority/12UE,Huntingdonshire District Council,LE01,Paxton Pits,303,Building Mtce,219928,02/11/2017,02/11/2017,CR000363,B. S. GRAVES ELECTRICAL LTD,25146, 513.10 
http://statistics.data.gov.uk/id/local-authority/12UE,Huntingdonshire District Council,LN90,Site & Centre Management,303,Building Mtce,219957,15/11/2017,16/11/2017,CR423380,NJL PROPERTY SOLUTIONS,OLSN0114, 530.12 
http://statistics.data.gov.uk/id/local-authority/12UE,Huntingdonshire District Council,LN90,Site & Centre Management,303,Building Mtce,221093,22/11/2017,22/11/2017,CR423380,NJL PROPERTY SOLUTIONS,OLSN0115, 600.08 
http://statistics.data.gov.uk/id/local-authority/12UE,Huntingdonshire District Council,LN90,Site & Centre Management,303,Building Mtce,220228,08/11/2017,09/11/2017,CR424999,PERSONAL DATA REDACTED,1, 642.20 
http://statistics.data.gov.uk/id/local-authority/12UE,Huntingdonshire District Council,MB41,Eastfield House,303,Building Mtce,220155,09/11/2017,09/11/2017,CR424694,MIRAMAR ENGINEERING LTD,#001252, 800.00 
http://statistics.data.gov.uk/id/local-authority/12UE,Huntingdonshire District Council,HF01,Mobile Home Park,303,Building Mtce,219323,02/11/2017,02/11/2017,CR000363,B. S. GRAVES ELECTRICAL LTD,25117, 813.31 
http://statistics.data.gov.uk/id/local-authority/12UE,Huntingdonshire District Council,KA09,Yaxley Community Info Centre,303,Building Mtce,219969,02/11/2017,02/11/2017,CR479202,DMS HOME IMPROVEMENTS & ELECTRICAL,242, 880.00 
http://statistics.data.gov.uk/id/local-authority/12UE,Huntingdonshire District Council,L159,Hunt Leis C -Gen Improve (Cs),303,Building Mtce,220245,22/11/2017,22/11/2017,CR424694,MIRAMAR ENGINEERING LTD,1291, 900.00 
http://statistics.data.gov.uk/id/local-authority/12UE,Huntingdonshire District Council,LS90,Site & Centre Management,303,Building Mtce,220610,15/11/2017,16/11/2017,CR424614,ENVIROCURE LTD,18588, 980.00 
http://statistics.data.gov.uk/id/local-authority/12UE,Huntingdonshire District Council,LQ16,Ten Pin Bowling,303,Building Mtce,220617,15/11/2017,16/11/2017,CR424631,COMPLETE BOWLING SERVICES LTD,7-08 989," 1,035.00 "
http://statistics.data.gov.uk/id/local-authority/12UE,Huntingdonshire District Council,EP01,Bus Station Pc - Huntingdon,303,Building Mtce,221134,23/11/2017,23/11/2017,CR478363,WALLGATE LIMITED,12285," 1,192.00 "
http://statistics.data.gov.uk/id/local-authority/12UE,Huntingdonshire District Council,D010,Bldg Efficiency -Salix Funding,303,Building Mtce,220415,15/11/2017,15/11/2017,CR028041,ROGER WILSON ELECTRONICS,9890," 5,592.00 "
http://statistics.data.gov.uk/id/local-authority/12UE,Huntingdonshire District Council,L116,St Ivo - General Improve (Cs),303,Building Mtce,221122,29/11/2017,30/11/2017,CR424631,COMPLETE BOWLING SERVICES LTD,7-08 994," 10,591.12 "
http://statistics.data.gov.uk/id/local-authority/12UE,Huntingdonshire District Council,L213,Ol Huntingdon Expansion,303,Building Mtce,220715,15/11/2017,21/11/2017,CR424970,ARW SPECIALIST BUILDING CONTRACTORS LTD,3022," 47,689.10 "
http://statistics.data.gov.uk/id/local-authority/12UE,Huntingdonshire District Council,LE01,Paxton Pits,359,Sitework,220367,09/11/2017,09/11/2017,CR182151,KITE UTILITY SERVICES LIMITED,470," 1,461.68 "
http://statistics.data.gov.uk/id/local-authority/12UE,Huntingdonshire District Council,LV06,Parks & Open Spaces,359,Sitework,220285,08/11/2017,09/11/2017,CR415958,BROXAP LTD,INV218688," 1,683.00 "
http://statistics.data.gov.uk/id/local-authority/12UE,Huntingdonshire District Council,LV06,Parks & Open Spaces,360,Playground Equipment,220420,14/11/2017,15/11/2017,CR410041,MEDWAY GALVANISING COMPANY LTD,287634, 305.00 
http://statistics.data.gov.uk/id/local-authority/12UE,Huntingdonshire District Council,LV06,Parks & Open Spaces,360,Playground Equipment,221113,22/11/2017,23/11/2017,CR455051,EIBE PLAY LTD,90122089, 980.00 
http://statistics.data.gov.uk/id/local-authority/12UE,Huntingdonshire District Council,LV06,Parks & Open Spaces,360,Playground Equipment,219981,09/11/2017,09/11/2017,CR478173,PROLUDIC LTD,9393S99175," 1,030.64 "
http://statistics.data.gov.uk/id/local-authority/12UE,Huntingdonshire District Council,L501,Play Equipment,360,Playground Equipment,221138,23/11/2017,23/11/2017,CR028997,WICKSTEED LEISURE LTD,736884," 7,960.00 "
http://statistics.data.gov.uk/id/local-authority/12UE,Huntingdonshire District Council,MB41,Eastfield House,380,Plant & Equipment Maintenance,220840,15/11/2017,15/11/2017,CR422285,FIRST IN SERVICE LTD,325236, 250.00 
http://statistics.data.gov.uk/id/local-authority/12UE,Huntingdonshire District Council,LK90,Site & Centre Management,380,Plant & Equipment Maintenance,220840,15/11/2017,15/11/2017,CR422285,FIRST IN SERVICE LTD,325236, 500.00 
http://statistics.data.gov.uk/id/local-authority/12UE,Huntingdonshire District Council,LN90,Site & Centre Management,380,Plant & Equipment Maintenance,220840,15/11/2017,15/11/2017,CR422285,FIRST IN SERVICE LTD,325236, 500.00 
http://statistics.data.gov.uk/id/local-authority/12UE,Huntingdonshire District Council,LP90,Site & Centre Management,380,Plant & Equipment Maintenance,220840,15/11/2017,15/11/2017,CR422285,FIRST IN SERVICE LTD,325236, 500.00 
http://statistics.data.gov.uk/id/local-authority/12UE,Huntingdonshire District Council,LQ90,Site & Centre Management,380,Plant & Equipment Maintenance,220840,15/11/2017,15/11/2017,CR422285,FIRST IN SERVICE LTD,325236, 500.00 
http://statistics.data.gov.uk/id/local-authority/12UE,Huntingdonshire District Council,LR90,Site & Centre Management,380,Plant & Equipment Maintenance,220840,15/11/2017,15/11/2017,CR422285,FIRST IN SERVICE LTD,325236, 500.00 
http://statistics.data.gov.uk/id/local-authority/12UE,Huntingdonshire District Council,LS90,Site & Centre Management,380,Plant & Equipment Maintenance,220840,15/11/2017,15/11/2017,CR422285,FIRST IN SERVICE LTD,325236, 500.00 
http://statistics.data.gov.uk/id/local-authority/12UE,Huntingdonshire District Council,MB41,Eastfield House,380,Plant & Equipment Maintenance,220281,08/11/2017,09/11/2017,CR415341,CAMBRIDGE DOOR SERVICES,7052, 680.00 
http://statistics.data.gov.uk/id/local-authority/12UE,Huntingdonshire District Council,MB01,Pathfinder House,380,Plant & Equipment Maintenance,220840,15/11/2017,15/11/2017,CR422285,FIRST IN SERVICE LTD,325236, 750.00 
http://statistics.data.gov.uk/id/local-authority/12UE,Huntingdonshire District Council,TC46,Huntingdon Multi-Storey,380,Plant & Equipment Maintenance,219945,15/11/2017,15/11/2017,CR088939,STANNAH LIFTS,PO20153388, 768.00 
http://statistics.data.gov.uk/id/local-authority/12UE,Huntingdonshire District Council,TB01,Huntingdon Bus Station,410,Rent,221199,22/11/2017,23/11/2017,CR411150,SHOPSAFE LTD,INV39123, 363.00 
http://statistics.data.gov.uk/id/local-authority/12UE,Huntingdonshire District Council,KG04,Voluntary Sector Grants,411,Hire Of Rooms,220008,03/11/2017,09/11/2017,CR478566,PORTAKABIN LTD,900795511, 672.54 
http://statistics.data.gov.uk/id/local-authority/12UE,Huntingdonshire District Council,KC01,Cctv Huntingdonshire,420,Electricity,220725,14/11/2017,05/12/2017,CR416430,E-ON ENERGY,,"-1,001.65 "
http://statistics.data.gov.uk/id/local-authority/12UE,Huntingdonshire District Council,TC82,St Neots Riverside,420,Electricity,219747,02/11/2017,02/11/2017,CR407130,SWALEC,491225588, 307.45 
http://statistics.data.gov.uk/id/local-authority/12UE,Huntingdonshire District Council,TC90,Car Parks Operational Mgt,420,Electricity,220726,14/11/2017,14/11/2017,CR416430,E-ON ENERGY,11398241360, 319.81 
http://statistics.data.gov.uk/id/local-authority/12UE,Huntingdonshire District Council,LV06,Parks & Open Spaces,420,Electricity,219743,02/11/2017,02/11/2017,CR407130,SWALEC,121573804, 541.60 
http://statistics.data.gov.uk/id/local-authority/12UE,Huntingdonshire District Council,TB01,Huntingdon Bus Station,420,Electricity,219908,01/11/2017,01/11/2017,CR407130,SWALEC,661225560, 933.53 
http://statistics.data.gov.uk/id/local-authority/12UE,Huntingdonshire District Council,KC01,Cctv Huntingdonshire,420,Electricity,220725,14/11/2017,14/11/2017,CR416430,E-ON ENERGY,11398240710," 1,001.65 "
http://statistics.data.gov.uk/id/local-authority/12UE,Huntingdonshire District Council,KC80,Cctv Shared Service Hosting,420,Electricity,220725,14/11/2017,05/12/2017,CR416430,E-ON ENERGY,," 1,001.65 "
http://statistics.data.gov.uk/id/local-authority/12UE,Huntingdonshire District Council,LP01,Swimming,420,Electricity,220672,14/11/2017,14/11/2017,CR407130,SWALEC,921718102," 1,361.41 "
http://statistics.data.gov.uk/id/local-authority/12UE,Huntingdonshire District Council,LD90,Hinchingbrooke Park Management,420,Electricity,221130,22/11/2017,23/11/2017,CR407130,SWALEC,41226290," 1,583.09 "
http://statistics.data.gov.uk/id/local-authority/12UE,Huntingdonshire District Council,LS90,Site & Centre Management,420,Electricity,220670,14/11/2017,14/11/2017,CR407130,SWALEC,211687030," 2,552.98 "
http://statistics.data.gov.uk/id/local-authority/12UE,Huntingdonshire District Council,LR90,Site & Centre Management,420,Electricity,220671,14/11/2017,14/11/2017,CR407130,SWALEC,461717524," 2,859.99 "
http://statistics.data.gov.uk/id/local-authority/12UE,Huntingdonshire District Council,LP01,Swimming,420,Electricity,220632,13/11/2017,13/11/2017,CR455940,HAVEN POWER LTD,65916," 3,102.54 "
http://statistics.data.gov.uk/id/local-authority/12UE,Huntingdonshire District Council,MB01,Pathfinder House,420,Electricity,617511,22/11/2017,23/11/2017,CR083791,CAMBRIDGESHIRE CONSTABULARY,C0000380," 3,300.00 "
http://statistics.data.gov.uk/id/local-authority/12UE,Huntingdonshire District Council,LK90,Site & Centre Management,420,Electricity,220635,13/11/2017,13/11/2017,CR455940,HAVEN POWER LTD,95922," 3,379.33 "
http://statistics.data.gov.uk/id/local-authority/12UE,Huntingdonshire District Council,MB41,Eastfield House,420,Electricity,220630,13/11/2017,13/11/2017,CR455940,HAVEN POWER LTD,65924," 3,673.31 "
http://statistics.data.gov.uk/id/local-authority/12UE,Huntingdonshire District Council,LQ90,Site & Centre Management,420,Electricity,220633,13/11/2017,13/11/2017,CR455940,HAVEN POWER LTD,65919," 6,038.19 "
http://statistics.data.gov.uk/id/local-authority/12UE,Huntingdonshire District Council,LN01,Swimming,420,Electricity,220631,13/11/2017,13/11/2017,CR455940,HAVEN POWER LTD,65914," 7,803.54 "
http://statistics.data.gov.uk/id/local-authority/12UE,Huntingdonshire District Council,MB01,Pathfinder House,420,Electricity,220634,13/11/2017,13/11/2017,CR455940,HAVEN POWER LTD,65912," 8,807.46 "
http://statistics.data.gov.uk/id/local-authority/12UE,Huntingdonshire District Council,MB41,Eastfield House,421,Gas,220661,13/11/2017,20/11/2017,CR416430,E-ON ENERGY,12489089940, 285.72 
http://statistics.data.gov.uk/id/local-authority/12UE,Huntingdonshire District Council,LK90,Site & Centre Management,421,Gas,220665,13/11/2017,20/11/2017,CR416430,E-ON ENERGY,12489089510, 304.51 
http://statistics.data.gov.uk/id/local-authority/12UE,Huntingdonshire District Council,LP90,Site & Centre Management,421,Gas,220662,13/11/2017,20/11/2017,CR416430,E-ON ENERGY,12489088970, 427.94 
http://statistics.data.gov.uk/id/local-authority/12UE,Huntingdonshire District Council,MB01,Pathfinder House,421,Gas,220669,13/11/2017,20/11/2017,CR416430,E-ON ENERGY,13313569100, 609.49 
http://statistics.data.gov.uk/id/local-authority/12UE,Huntingdonshire District Council,LS90,Site & Centre Management,421,Gas,220666,13/11/2017,20/11/2017,CR416430,E-ON ENERGY,12489088700, 850.39 
http://statistics.data.gov.uk/id/local-authority/12UE,Huntingdonshire District Council,LR90,Site & Centre Management,421,Gas,220660,13/11/2017,20/11/2017,CR416430,E-ON ENERGY,12489090790, 871.00 
http://statistics.data.gov.uk/id/local-authority/12UE,Huntingdonshire District Council,LP01,Swimming,421,Gas,220664,13/11/2017,20/11/2017,CR416430,E-ON ENERGY,12489088110," 1,879.34 "
http://statistics.data.gov.uk/id/local-authority/12UE,Huntingdonshire District Council,LN01,Swimming,421,Gas,220668,13/11/2017,20/11/2017,CR416430,E-ON ENERGY,12489088380," 2,480.72 "
http://statistics.data.gov.uk/id/local-authority/12UE,Huntingdonshire District Council,LQ90,Site & Centre Management,421,Gas,220659,13/11/2017,20/11/2017,CR416430,E-ON ENERGY,12489090950," 3,402.42 "
http://statistics.data.gov.uk/id/local-authority/12UE,Huntingdonshire District Council,TB01,Huntingdon Bus Station,432,Water & Sewerage,220698,14/11/2017,14/11/2017,CR000071,"WAVE, ANGLIAN WATER BUSINESS",243770901, 254.22 
http://statistics.data.gov.uk/id/local-authority/12UE,Huntingdonshire District Council,LD90,Hinchingbrooke Park Management,432,Water & Sewerage,220215,06/11/2017,09/11/2017,CR000071,"WAVE, ANGLIAN WATER BUSINESS",8059902619, 471.27 
http://statistics.data.gov.uk/id/local-authority/12UE,Huntingdonshire District Council,LE06,Barford Road Pocket Park,432,Water & Sewerage,220218,06/11/2017,09/11/2017,CR000071,"WAVE, ANGLIAN WATER BUSINESS",8059874859," 2,314.74 "
http://statistics.data.gov.uk/id/local-authority/12UE,Huntingdonshire District Council,LQ90,Site & Centre Management,432,Water & Sewerage,221224,23/11/2017,23/11/2017,CR408986,ST IVO SCHOOL,STI000522," 3,324.14 "
http://statistics.data.gov.uk/id/local-authority/12UE,Huntingdonshire District Council,LK90,Site & Centre Management,432,Water & Sewerage,220217,06/11/2017,09/11/2017,CR000071,"WAVE, ANGLIAN WATER BUSINESS",8059977500," 3,459.08 "
http://statistics.data.gov.uk/id/local-authority/12UE,Huntingdonshire District Council,MB01,Pathfinder House,440,Building Cleaning,220575,22/11/2017,23/11/2017,CR423413,HI-SPEC FACILITIES SERVICES PLC,33889, 315.00 
http://statistics.data.gov.uk/id/local-authority/12UE,Huntingdonshire District Council,TC46,Huntingdon Multi-Storey,440,Building Cleaning,220572,28/11/2017,30/11/2017,CR406985,ECOCLEEN SERVICES LIMITED,INV566085, 343.53 
http://statistics.data.gov.uk/id/local-authority/12UE,Huntingdonshire District Council,LD20,H'Brooke Countryside Centre,440,Building Cleaning,220574,28/11/2017,30/11/2017,CR406985,ECOCLEEN SERVICES LIMITED,INV566005, 434.69 
http://statistics.data.gov.uk/id/local-authority/12UE,Huntingdonshire District Council,TB10,Bus Shelters,440,Building Cleaning,220402,08/11/2017,08/11/2017,CR478949,G FERRARA LTD,GFL1798HDC," 1,515.00 "
http://statistics.data.gov.uk/id/local-authority/12UE,Huntingdonshire District Council,TB10,Bus Shelters,440,Building Cleaning,220401,08/11/2017,08/11/2017,CR478949,G FERRARA LTD,GFL1801HDC," 2,525.00 "
http://statistics.data.gov.uk/id/local-authority/12UE,Huntingdonshire District Council,TB01,Huntingdon Bus Station,443,Cleaning Materials,220179,06/11/2017,09/11/2017,CR415822,BEEBYS LIMITED,59913, 277.24 
http://statistics.data.gov.uk/id/local-authority/12UE,Huntingdonshire District Council,MB01,Pathfinder House,443,Cleaning Materials,220563,14/11/2017,15/11/2017,CR033423,MASKEARAID LTD,62356, 447.66 
http://statistics.data.gov.uk/id/local-authority/12UE,Huntingdonshire District Council,LQ90,Site & Centre Management,443,Cleaning Materials,219973,08/11/2017,09/11/2017,CR400700,LYRECO UK LTD,6101840231, 572.20 
http://statistics.data.gov.uk/id/local-authority/12UE,Huntingdonshire District Council,LQ90,Site & Centre Management,450,Fire & Security,220609,15/11/2017,16/11/2017,CR455756,WALKER FIRE UK LTD,286293, 505.11 
http://statistics.data.gov.uk/id/local-authority/12UE,Huntingdonshire District Council,LK90,Site & Centre Management,450,Fire & Security,219963,08/11/2017,09/11/2017,CR454030,G4S SECURE SOLUTIONS (UK) LTD,90234612, 633.36 
http://statistics.data.gov.uk/id/local-authority/12UE,Huntingdonshire District Council,LQ90,Site & Centre Management,450,Fire & Security,219964,08/11/2017,09/11/2017,CR454030,G4S SECURE SOLUTIONS (UK) LTD,90234611, 633.36 
http://statistics.data.gov.uk/id/local-authority/12UE,Huntingdonshire District Council,LD90,Hinchingbrooke Park Management,450,Fire & Security,221119,22/11/2017,23/11/2017,CR410090,BRITANNIA FIRE & SECURITY LTD,74794, 674.00 
http://statistics.data.gov.uk/id/local-authority/12UE,Huntingdonshire District Council,EG06,Grounds Maintenance,500,Equipment,220192,06/11/2017,04/12/2017,CR000261,ERNEST DOE & SONS,,"-2,210.00 "
http://statistics.data.gov.uk/id/local-authority/12UE,Huntingdonshire District Council,EG06,Grounds Maintenance,500,Equipment,220189,06/11/2017,04/12/2017,CR001981,DTS SOLUTIONS (UK) LTD,,"-1,737.00 "
http://statistics.data.gov.uk/id/local-authority/12UE,Huntingdonshire District Council,LQ02,Impressions,500,Equipment,221035,22/11/2017,22/11/2017,CR424985,GEEZERS BOXING,9764, 267.09 
http://statistics.data.gov.uk/id/local-authority/12UE,Huntingdonshire District Council,LN90,Site & Centre Management,500,Equipment,220618,22/11/2017,22/11/2017,CR478866,KONICA MINOLTA,1134111706, 286.85 
http://statistics.data.gov.uk/id/local-authority/12UE,Huntingdonshire District Council,LP90,Site & Centre Management,500,Equipment,220653,15/11/2017,16/11/2017,CR006566,ESPO,4650606, 315.00 
http://statistics.data.gov.uk/id/local-authority/12UE,Huntingdonshire District Council,LQ90,Site & Centre Management,500,Equipment,221014,22/11/2017,22/11/2017,CR006566,ESPO,4658127, 345.00 
http://statistics.data.gov.uk/id/local-authority/12UE,Huntingdonshire District Council,MU95,Vehicle Maintenance,500,Equipment,219784,06/11/2017,09/11/2017,CR478298,BERENDSEN,SN2751260, 429.40 
http://statistics.data.gov.uk/id/local-authority/12UE,Huntingdonshire District Council,EG05,Arboricultural Team,500,Equipment,221432,28/11/2017,30/11/2017,CR477803,ASHTEAD PLANT HIRE COMPANY LTD,16304564, 434.07 
http://statistics.data.gov.uk/id/local-authority/12UE,Huntingdonshire District Council,LP90,Site & Centre Management,500,Equipment,221015,22/11/2017,22/11/2017,CR478866,KONICA MINOLTA,1134259439, 470.04 
http://statistics.data.gov.uk/id/local-authority/12UE,Huntingdonshire District Council,LE01,Paxton Pits,500,Equipment,220409,09/11/2017,09/11/2017,CR425009,NATURE CONSERVATION SERVICES,28D, 517.50 
http://statistics.data.gov.uk/id/local-authority/12UE,Huntingdonshire District Council,LN10,Indoor Sports,500,Equipment,220240,15/11/2017,16/11/2017,CR028041,ROGER WILSON ELECTRONICS,9888, 540.00 
http://statistics.data.gov.uk/id/local-authority/12UE,Huntingdonshire District Council,EG06,Grounds Maintenance,500,Equipment,220189,06/11/2017,09/11/2017,CR001981,DTS SOLUTIONS (UK) LTD,S000665," 1,737.00 "
http://statistics.data.gov.uk/id/local-authority/12UE,Huntingdonshire District Council,EG06,Grounds Maintenance,500,Equipment,220192,06/11/2017,09/11/2017,CR000261,ERNEST DOE & SONS,710067," 2,210.00 "
http://statistics.data.gov.uk/id/local-authority/12UE,Huntingdonshire District Council,LQ21,Burgess Hall,507,Equipment Hire,220718,15/11/2017,16/11/2017,CR455385,THE CAMBRIDGE CHAIR COVER COMPANY LTD,1215, 282.25 
http://statistics.data.gov.uk/id/local-authority/12UE,Huntingdonshire District Council,LQ21,Burgess Hall,507,Equipment Hire,220717,15/11/2017,16/11/2017,CR455385,THE CAMBRIDGE CHAIR COVER COMPANY LTD,1214, 313.75 
http://statistics.data.gov.uk/id/local-authority/12UE,Huntingdonshire District Council,EG06,Grounds Maintenance,507,Equipment Hire,220192,06/11/2017,04/12/2017,CR000261,ERNEST DOE & SONS,," 2,210.00 "
http://statistics.data.gov.uk/id/local-authority/12UE,Huntingdonshire District Council,LQ21,Burgess Hall,511,Equipment Maintenance,221419,29/11/2017,30/11/2017,CR000305,KEN BOOTH & CO,8329,-272.32 
http://statistics.data.gov.uk/id/local-authority/12UE,Huntingdonshire District Council,MD22,Ccity Recharge Invoices,511,Equipment Maintenance,221499,29/11/2017,30/11/2017,CR424928,AMTECH GROUP LTD,749996, 252.75 
http://statistics.data.gov.uk/id/local-authority/12UE,Huntingdonshire District Council,MU95,Vehicle Maintenance,511,Equipment Maintenance,219787,02/11/2017,02/11/2017,CR404076,HQ FORKLIFTS LTD,65532, 265.37 
http://statistics.data.gov.uk/id/local-authority/12UE,Huntingdonshire District Council,LN20,Hospitality,511,Equipment Maintenance,221145,22/11/2017,22/11/2017,CR480775,CATERFIX LTD,40024, 269.12 
http://statistics.data.gov.uk/id/local-authority/12UE,Huntingdonshire District Council,KC80,Cctv Shared Service Hosting,511,Equipment Maintenance,221124,27/11/2017,30/11/2017,CR027775,QUADRANT SECURITY GROUP,SIN085177, 269.80 
http://statistics.data.gov.uk/id/local-authority/12UE,Huntingdonshire District Council,QM01,Huntingdon Market,511,Equipment Maintenance,616892,09/11/2017,09/11/2017,CR161901,HUNTINGDON TOWN COUNCIL,14416, 300.00 
http://statistics.data.gov.uk/id/local-authority/12UE,Huntingdonshire District Council,LP29,Outdoor Sports,511,Equipment Maintenance,220622,15/11/2017,16/11/2017,CR000841,WARBOYS SERVICES LTD,18469, 349.57 
http://statistics.data.gov.uk/id/local-authority/12UE,Huntingdonshire District Council,LK90,Site & Centre Management,511,Equipment Maintenance,220019,08/11/2017,09/11/2017,CR424694,MIRAMAR ENGINEERING LTD,1282, 375.00 
http://statistics.data.gov.uk/id/local-authority/12UE,Huntingdonshire District Council,LQ21,Burgess Hall,511,Equipment Maintenance,218191,29/11/2017,30/11/2017,CR000305,KEN BOOTH & CO,264069, 406.10 
http://statistics.data.gov.uk/id/local-authority/12UE,Huntingdonshire District Council,LN90,Site & Centre Management,511,Equipment Maintenance,221140,22/11/2017,22/11/2017,CR410226,INFLATABLE TESTING & REPAIRING SERVICES LTD,5237, 414.56 
http://statistics.data.gov.uk/id/local-authority/12UE,Huntingdonshire District Council,MP01,Printing,511,Equipment Maintenance,221417,28/11/2017,30/11/2017,CR478080,B & H DIGITAL LTD,27494, 440.85 
http://statistics.data.gov.uk/id/local-authority/12UE,Huntingdonshire District Council,LN02,Impressions,511,Equipment Maintenance,220607,22/11/2017,22/11/2017,CR033037,TECHNOGYM UK LTD,17012587, 460.14 
http://statistics.data.gov.uk/id/local-authority/12UE,Huntingdonshire District Council,LP90,Site & Centre Management,511,Equipment Maintenance,220015,08/11/2017,09/11/2017,CR424694,MIRAMAR ENGINEERING LTD,1278, 725.00 
http://statistics.data.gov.uk/id/local-authority/12UE,Huntingdonshire District Council,LS90,Site & Centre Management,511,Equipment Maintenance,220016,08/11/2017,09/11/2017,CR424694,MIRAMAR ENGINEERING LTD,1279, 725.00 
http://statistics.data.gov.uk/id/local-authority/12UE,Huntingdonshire District Council,KC80,Cctv Shared Service Hosting,511,Equipment Maintenance,220012,03/11/2017,09/11/2017,CR422592,STORACALL VOICE SYSTEMS,31137," 1,053.94 "
http://statistics.data.gov.uk/id/local-authority/12UE,Huntingdonshire District Council,LN90,Site & Centre Management,511,Equipment Maintenance,220017,15/11/2017,16/11/2017,CR424694,MIRAMAR ENGINEERING LTD,1280," 1,075.00 "
http://statistics.data.gov.uk/id/local-authority/12UE,Huntingdonshire District Council,LQ90,Site & Centre Management,511,Equipment Maintenance,220018,08/11/2017,09/11/2017,CR424694,MIRAMAR ENGINEERING LTD,1281," 1,075.00 "
http://statistics.data.gov.uk/id/local-authority/12UE,Huntingdonshire District Council,MP01,Printing,511,Equipment Maintenance,220314,08/11/2017,09/11/2017,CR409013,CANON UK LTD,9198580," 2,398.86 "
http://statistics.data.gov.uk/id/local-authority/12UE,Huntingdonshire District Council,MD23,Scdc Recharge Invoices,511,Equipment Maintenance,220812,15/11/2017,16/11/2017,CR424755,ORCHARD INFORMATION SYSTEMS LTD,SLIN/00044908," 2,500.00 "
http://statistics.data.gov.uk/id/local-authority/12UE,Huntingdonshire District Council,MP02,"Mfds -Local Print, Scan & Copy",511,Equipment Maintenance,220297,08/11/2017,09/11/2017,CR478866,KONICA MINOLTA,1133826325," 2,589.01 "
http://statistics.data.gov.uk/id/local-authority/12UE,Huntingdonshire District Council,KC82,Cctv Shared Service - Hdc,511,Equipment Maintenance,220386,08/11/2017,09/11/2017,CR425005,LONDON BOROUGH OF ENFIELD,82114584," 2,800.00 "
http://statistics.data.gov.uk/id/local-authority/12UE,Huntingdonshire District Council,MD23,Scdc Recharge Invoices,511,Equipment Maintenance,219898,01/11/2017,02/11/2017,CR424742,ENFORCE TECHNOLOGY,6797," 3,500.00 "
http://statistics.data.gov.uk/id/local-authority/12UE,Huntingdonshire District Council,MD23,Scdc Recharge Invoices,511,Equipment Maintenance,220359,08/11/2017,09/11/2017,CR031918,PHOENIX SOFTWARE LTD,OP/1807191," 4,943.58 "
http://statistics.data.gov.uk/id/local-authority/12UE,Huntingdonshire District Council,KC80,Cctv Shared Service Hosting,511,Equipment Maintenance,220697,23/11/2017,23/11/2017,CR027775,QUADRANT SECURITY GROUP,SIN085127," 6,490.00 "
http://statistics.data.gov.uk/id/local-authority/12UE,Huntingdonshire District Council,MD22,Ccity Recharge Invoices,511,Equipment Maintenance,221521,29/11/2017,30/11/2017,CR479055,PLAYFORDS LTD,14946," 7,042.98 "
http://statistics.data.gov.uk/id/local-authority/12UE,Huntingdonshire District Council,MD22,Ccity Recharge Invoices,511,Equipment Maintenance,220724,14/11/2017,16/11/2017,CR017896,CAMBRIDGE CITY COUNCIL,198662," 10,003.92 "
http://statistics.data.gov.uk/id/local-authority/12UE,Huntingdonshire District Council,MD22,Ccity Recharge Invoices,511,Equipment Maintenance,220341,08/11/2017,09/11/2017,CR424807,Q ASSOCIATES LIMITED,44439," 11,012.33 "
http://statistics.data.gov.uk/id/local-authority/12UE,Huntingdonshire District Council,MD22,Ccity Recharge Invoices,511,Equipment Maintenance,220723,14/11/2017,16/11/2017,CR017896,CAMBRIDGE CITY COUNCIL,198661," 13,431.89 "
http://statistics.data.gov.uk/id/local-authority/12UE,Huntingdonshire District Council,TC90,Car Parks Operational Mgt,522,Car Park Machines,220284,08/11/2017,09/11/2017,CR401137,CALE ACCESS UK LTD,128276," 3,161.06 "
http://statistics.data.gov.uk/id/local-authority/12UE,Huntingdonshire District Council,E304,Wheeled Bins,525,Recycling Bins,220683,22/11/2017,23/11/2017,CR424133,UK CONTAINER MAINTENANCE LTD,31142," 2,314.00 "
http://statistics.data.gov.uk/id/local-authority/12UE,Huntingdonshire District Council,MU95,Vehicle Maintenance,550,Materials,220844,16/11/2017,16/11/2017,CR478298,BERENDSEN,SN2714219, 318.00 
http://statistics.data.gov.uk/id/local-authority/12UE,Huntingdonshire District Council,MU95,Vehicle Maintenance,550,Materials,220845,16/11/2017,16/11/2017,CR478298,BERENDSEN,SN2732877, 318.00 
http://statistics.data.gov.uk/id/local-authority/12UE,Huntingdonshire District Council,MU95,Vehicle Maintenance,550,Materials,220020,06/11/2017,09/11/2017,CR027641,BOC,3044247215, 389.45 
http://statistics.data.gov.uk/id/local-authority/12UE,Huntingdonshire District Council,MU95,Vehicle Maintenance,550,Materials,220842,16/11/2017,16/11/2017,CR478298,BERENDSEN,SN2695974, 397.50 
http://statistics.data.gov.uk/id/local-authority/12UE,Huntingdonshire District Council,MU95,Vehicle Maintenance,550,Materials,221005,22/11/2017,23/11/2017,CR455479,TRINITY ENGINEERING & COMPONENT SUPPLIES LTD,38447, 581.86 
http://statistics.data.gov.uk/id/local-authority/12UE,Huntingdonshire District Council,MU95,Vehicle Maintenance,550,Materials,220589,15/11/2017,15/11/2017,CR477773,UNITED ECO SERVICES LTD,EI586303, 758.21 
http://statistics.data.gov.uk/id/local-authority/12UE,Huntingdonshire District Council,DF90,Food Safety General,550,Materials,220833,14/11/2017,16/11/2017,CR478873,GIPPING PRESS LTD,58307, 969.00 
http://statistics.data.gov.uk/id/local-authority/12UE,Huntingdonshire District Council,LQ90,Site & Centre Management,551,Chemicals,221492,29/11/2017,30/11/2017,CR401094,LEISURETEQ,64100, 320.00 
http://statistics.data.gov.uk/id/local-authority/12UE,Huntingdonshire District Council,LN01,Swimming,551,Chemicals,220649,22/11/2017,22/11/2017,CR015017,BRENNTAG UK LTD,38SI 3858841, 697.78 
http://statistics.data.gov.uk/id/local-authority/12UE,Huntingdonshire District Council,LP01,Swimming,551,Chemicals,220274,15/11/2017,16/11/2017,CR015017,BRENNTAG UK LTD,38SI 3857417, 965.11 
http://statistics.data.gov.uk/id/local-authority/12UE,Huntingdonshire District Council,EQ02,Recycling Collections,552,Refuse Sacks,220307,06/11/2017,09/11/2017,CR455671,IMPERIAL POLYTHENE PRODUCTS LTD,SIN092219," 2,562.56 "
http://statistics.data.gov.uk/id/local-authority/12UE,Huntingdonshire District Council,EQ02,Recycling Collections,552,Refuse Sacks,220311,06/11/2017,09/11/2017,CR455671,IMPERIAL POLYTHENE PRODUCTS LTD,SIN092289," 3,843.84 "
http://statistics.data.gov.uk/id/local-authority/12UE,Huntingdonshire District Council,ER01,Domestic Waste Collection,552,Refuse Sacks,220309,06/11/2017,09/11/2017,CR455671,IMPERIAL POLYTHENE PRODUCTS LTD,SIN092176," 7,392.68 "
http://statistics.data.gov.uk/id/local-authority/12UE,Huntingdonshire District Council,EG06,Grounds Maintenance,556,Plants And Seeds,618252,28/11/2017,30/11/2017,CR455149,HUNTINGDON TOWN COUNCIL,14344, 487.50 
http://statistics.data.gov.uk/id/local-authority/12UE,Huntingdonshire District Council,EG06,Grounds Maintenance,556,Plants And Seeds,220590,15/11/2017,15/11/2017,CR404318,PERSONAL DATA REDACTED,W1217," 6,253.87 "
http://statistics.data.gov.uk/id/local-authority/12UE,Huntingdonshire District Council,LK20,Hospitality,558,Bar Provisions,220222,08/11/2017,09/11/2017,CR422174,LACONS,690782, 308.47 
http://statistics.data.gov.uk/id/local-authority/12UE,Huntingdonshire District Council,LQ21,Burgess Hall,558,Bar Provisions,221114,29/11/2017,30/11/2017,CR027611,BOOKER CASH AND CARRY,2104421022, 334.14 
http://statistics.data.gov.uk/id/local-authority/12UE,Huntingdonshire District Council,LK20,Hospitality,558,Bar Provisions,220646,15/11/2017,16/11/2017,CR422174,LACONS,691844, 503.21 
http://statistics.data.gov.uk/id/local-authority/12UE,Huntingdonshire District Council,LK20,Hospitality,558,Bar Provisions,221460,29/11/2017,30/11/2017,CR422174,LACONS,693844, 547.08 
http://statistics.data.gov.uk/id/local-authority/12UE,Huntingdonshire District Council,LQ27,Burgess Bar,558,Bar Provisions,221020,22/11/2017,22/11/2017,CR422174,LACONS,692656," 1,078.48 "
http://statistics.data.gov.uk/id/local-authority/12UE,Huntingdonshire District Council,LQ27,Burgess Bar,558,Bar Provisions,219962,02/11/2017,02/11/2017,CR422253,OAKHAM ALES,I175326," 1,195.08 "
http://statistics.data.gov.uk/id/local-authority/12UE,Huntingdonshire District Council,LQ27,Burgess Bar,558,Bar Provisions,220203,08/11/2017,09/11/2017,CR422174,LACONS,690309," 1,759.17 "
http://statistics.data.gov.uk/id/local-authority/12UE,Huntingdonshire District Council,LQ21,Burgess Hall,558,Bar Provisions,219843,02/11/2017,02/11/2017,CR422174,LACONS,689166," 1,906.98 "
http://statistics.data.gov.uk/id/local-authority/12UE,Huntingdonshire District Council,LD40,Hinchingbrooke Park Cafe,559,Catering Materials,221590,30/11/2017,30/11/2017,CR402112,COOLER AID LTD,929521,-335.70 
http://statistics.data.gov.uk/id/local-authority/12UE,Huntingdonshire District Council,LD40,Hinchingbrooke Park Cafe,559,Catering Materials,221217,22/11/2017,23/11/2017,CR411339,KING BROS,931970, 252.22 
http://statistics.data.gov.uk/id/local-authority/12UE,Huntingdonshire District Council,LD40,Hinchingbrooke Park Cafe,559,Catering Materials,220365,09/11/2017,09/11/2017,CR411339,KING BROS,931032, 272.47 
http://statistics.data.gov.uk/id/local-authority/12UE,Huntingdonshire District Council,LQ27,Burgess Bar,559,Catering Materials,220841,22/11/2017,22/11/2017,CR033415,SOUTH LINCS FOOD SERVICE,396835, 288.38 
http://statistics.data.gov.uk/id/local-authority/12UE,Huntingdonshire District Council,LD40,Hinchingbrooke Park Cafe,559,Catering Materials,221111,22/11/2017,23/11/2017,CR027611,BOOKER CASH AND CARRY,2104350704, 320.56 
http://statistics.data.gov.uk/id/local-authority/12UE,Huntingdonshire District Council,LD40,Hinchingbrooke Park Cafe,559,Catering Materials,221206,22/11/2017,23/11/2017,CR411339,KING BROS,929521, 335.70 
http://statistics.data.gov.uk/id/local-authority/12UE,Huntingdonshire District Council,LQ20,Hospitality,559,Catering Materials,220220,15/11/2017,16/11/2017,CR455958,SLUSH PUPPIE LTD,INV105610, 341.55 
http://statistics.data.gov.uk/id/local-authority/12UE,Huntingdonshire District Council,LQ20,Hospitality,560,Vending Materials,219958,08/11/2017,09/11/2017,CR422660,LUCOZADE RIBENA SUNTORY LTD,10550535, 267.42 
http://statistics.data.gov.uk/id/local-authority/12UE,Huntingdonshire District Council,LP20,Hospitality,560,Vending Materials,219959,08/11/2017,09/11/2017,CR422660,LUCOZADE RIBENA SUNTORY LTD,10550534, 288.72 
http://statistics.data.gov.uk/id/local-authority/12UE,Huntingdonshire District Council,LQ20,Hospitality,560,Vending Materials,221097,29/11/2017,30/11/2017,CR478090,SNACKLINE DIRECT LTD,86791, 296.55 
http://statistics.data.gov.uk/id/local-authority/12UE,Huntingdonshire District Council,LS20,Hospitality,560,Vending Materials,221092,22/11/2017,22/11/2017,CR027611,BOOKER CASH AND CARRY,2104410922, 350.15 
http://statistics.data.gov.uk/id/local-authority/12UE,Huntingdonshire District Council,LN20,Hospitality,560,Vending Materials,220198,08/11/2017,09/11/2017,CR478090,SNACKLINE DIRECT LTD,86209, 460.43 
http://statistics.data.gov.uk/id/local-authority/12UE,Huntingdonshire District Council,MP01,Printing,562,Paper,220408,09/11/2017,09/11/2017,CR479468,ANTALIS LTD,7259138, 277.50 
http://statistics.data.gov.uk/id/local-authority/12UE,Huntingdonshire District Council,MP01,Printing,562,Paper,221454,30/11/2017,30/11/2017,CR479468,ANTALIS LTD,7318748, 277.50 
http://statistics.data.gov.uk/id/local-authority/12UE,Huntingdonshire District Council,MP01,Printing,562,Paper,221600,30/11/2017,30/11/2017,CR424769,PREMIER PAPER GROUP LTD,8940065, 424.85 
http://statistics.data.gov.uk/id/local-authority/12UE,Huntingdonshire District Council,LQ90,Site & Centre Management,570,Materials For Resale,221544,29/11/2017,30/11/2017,CR453959,PRO-AD LTD,30322, 480.00 
http://statistics.data.gov.uk/id/local-authority/12UE,Huntingdonshire District Council,LP90,Site & Centre Management,570,Materials For Resale,220242,15/11/2017,16/11/2017,CR424813,SPORTMAX,102850, 490.70 
http://statistics.data.gov.uk/id/local-authority/12UE,Huntingdonshire District Council,LN90,Site & Centre Management,570,Materials For Resale,219953,15/11/2017,16/11/2017,CR424813,SPORTMAX,102814, 541.70 
http://statistics.data.gov.uk/id/local-authority/12UE,Huntingdonshire District Council,N002,Vehicles & Plant,600,Vehicles Purchased,220422,14/11/2017,15/11/2017,CR424060,MARSHALL OF KNEBWORTH,342161, 295.00 
http://statistics.data.gov.uk/id/local-authority/12UE,Huntingdonshire District Council,N002,Vehicles & Plant,600,Vehicles Purchased,220722,22/11/2017,23/11/2017,CR001262,G & J PECK LTD,275092," 1,250.00 "
http://statistics.data.gov.uk/id/local-authority/12UE,Huntingdonshire District Council,N002,Vehicles & Plant,600,Vehicles Purchased,219757,02/11/2017,02/11/2017,CR000430,ARTHUR IBBETT LTD,119095," 1,771.47 "
http://statistics.data.gov.uk/id/local-authority/12UE,Huntingdonshire District Council,N002,Vehicles & Plant,600,Vehicles Purchased,220422,14/11/2017,15/11/2017,CR424060,MARSHALL OF KNEBWORTH,342161," 27,381.30 "
http://statistics.data.gov.uk/id/local-authority/12UE,Huntingdonshire District Council,N002,Vehicles & Plant,600,Vehicles Purchased,219940,09/11/2017,09/11/2017,CR424060,MARSHALL OF KNEBWORTH,342062," 27,676.30 "
http://statistics.data.gov.uk/id/local-authority/12UE,Huntingdonshire District Council,N002,Vehicles & Plant,600,Vehicles Purchased,220713,14/11/2017,15/11/2017,CR424060,MARSHALL OF KNEBWORTH,342160," 27,676.30 "
http://statistics.data.gov.uk/id/local-authority/12UE,Huntingdonshire District Council,N002,Vehicles & Plant,600,Vehicles Purchased,220714,14/11/2017,15/11/2017,CR424060,MARSHALL OF KNEBWORTH,342175," 27,676.30 "
http://statistics.data.gov.uk/id/local-authority/12UE,Huntingdonshire District Council,N002,Vehicles & Plant,600,Vehicles Purchased,221200,22/11/2017,23/11/2017,CR424060,MARSHALL OF KNEBWORTH,342277," 27,676.30 "
http://statistics.data.gov.uk/id/local-authority/12UE,Huntingdonshire District Council,N002,Vehicles & Plant,600,Vehicles Purchased,221201,22/11/2017,23/11/2017,CR424060,MARSHALL OF KNEBWORTH,342276," 27,676.30 "
http://statistics.data.gov.uk/id/local-authority/12UE,Huntingdonshire District Council,EG06,Grounds Maintenance,607,Vehicle Hire,220676,15/11/2017,15/11/2017,CR416566,SHB HIRE LTD,10877909, 664.26 
http://statistics.data.gov.uk/id/local-authority/12UE,Huntingdonshire District Council,ER01,Domestic Waste Collection,607,Vehicle Hire,220186,06/11/2017,09/11/2017,CR481057,GILDEN TRAINING,2341, 675.00 
http://statistics.data.gov.uk/id/local-authority/12UE,Huntingdonshire District Council,ER01,Domestic Waste Collection,607,Vehicle Hire,220675,15/11/2017,15/11/2017,CR416566,SHB HIRE LTD,10877908, 697.50 
http://statistics.data.gov.uk/id/local-authority/12UE,Huntingdonshire District Council,EG06,Grounds Maintenance,607,Vehicle Hire,220677,15/11/2017,15/11/2017,CR416566,SHB HIRE LTD,10877910, 736.25 
http://statistics.data.gov.uk/id/local-authority/12UE,Huntingdonshire District Council,ER01,Domestic Waste Collection,607,Vehicle Hire,220577,22/11/2017,23/11/2017,CR477663,GULLIVERS TRUCK HIRE LTD,1709/7256W, 797.15 
http://statistics.data.gov.uk/id/local-authority/12UE,Huntingdonshire District Council,ER01,Domestic Waste Collection,607,Vehicle Hire,219768,06/11/2017,09/11/2017,CR415496,FIVEWAYS MUNICIPAL VEHICLE HIRE LTD,80847, 850.00 
http://statistics.data.gov.uk/id/local-authority/12UE,Huntingdonshire District Council,ES01,Street Cleansing,607,Vehicle Hire,220001,09/11/2017,09/11/2017,CR424875,LONGMARSH LTD,7145597, 868.00 
http://statistics.data.gov.uk/id/local-authority/12UE,Huntingdonshire District Council,ES01,Street Cleansing,607,Vehicle Hire,220002,09/11/2017,09/11/2017,CR424875,LONGMARSH LTD,7145599, 868.00 
http://statistics.data.gov.uk/id/local-authority/12UE,Huntingdonshire District Council,ER01,Domestic Waste Collection,607,Vehicle Hire,220679,15/11/2017,15/11/2017,CR416566,SHB HIRE LTD,10877912, 976.50 
http://statistics.data.gov.uk/id/local-authority/12UE,Huntingdonshire District Council,ES01,Street Cleansing,607,Vehicle Hire,220678,15/11/2017,15/11/2017,CR416566,SHB HIRE LTD,10877911, 976.50 
http://statistics.data.gov.uk/id/local-authority/12UE,Huntingdonshire District Council,ER01,Domestic Waste Collection,607,Vehicle Hire,220838,15/11/2017,16/11/2017,CR423428,C-WAY DRIVER TRAINING,131410838," 1,020.00 "
http://statistics.data.gov.uk/id/local-authority/12UE,Huntingdonshire District Council,ER01,Domestic Waste Collection,607,Vehicle Hire,219878,06/11/2017,09/11/2017,CR423428,C-WAY DRIVER TRAINING,131410853," 1,115.00 "
http://statistics.data.gov.uk/id/local-authority/12UE,Huntingdonshire District Council,ER01,Domestic Waste Collection,607,Vehicle Hire,220758,22/11/2017,23/11/2017,CR423428,C-WAY DRIVER TRAINING,131410869," 1,115.00 "
http://statistics.data.gov.uk/id/local-authority/12UE,Huntingdonshire District Council,ER01,Domestic Waste Collection,607,Vehicle Hire,220190,06/11/2017,09/11/2017,CR423428,C-WAY DRIVER TRAINING,131410859," 1,170.00 "
http://statistics.data.gov.uk/id/local-authority/12UE,Huntingdonshire District Council,MU95,Vehicle Maintenance,614,Petrol,50236,30/11/2017,27/12/2017,,,, 616.39 
http://statistics.data.gov.uk/id/local-authority/12UE,Huntingdonshire District Council,MU95,Vehicle Maintenance,615,Diesel,50236,30/11/2017,27/12/2017,,,," 1,310.84 "
http://statistics.data.gov.uk/id/local-authority/12UE,Huntingdonshire District Council,GM14,Ph & Hc Vehicles,618,Vehicle Inspection,220384,08/11/2017,09/11/2017,CR422066,ADAMS AUTOS,365," 3,190.00 "
http://statistics.data.gov.uk/id/local-authority/12UE,Huntingdonshire District Council,ER01,Domestic Waste Collection,619,Vehicle Maintenance External,220180,06/11/2017,09/11/2017,CR000200,DENNIS EAGLE LTD,313420, 268.04 
http://statistics.data.gov.uk/id/local-authority/12UE,Huntingdonshire District Council,ER01,Domestic Waste Collection,619,Vehicle Maintenance External,221019,22/11/2017,23/11/2017,CR000200,DENNIS EAGLE LTD,314219, 286.20 
http://statistics.data.gov.uk/id/local-authority/12UE,Huntingdonshire District Council,ER01,Domestic Waste Collection,619,Vehicle Maintenance External,219781,06/11/2017,09/11/2017,CR000200,DENNIS EAGLE LTD,312989, 490.00 
http://statistics.data.gov.uk/id/local-authority/12UE,Huntingdonshire District Council,ER01,Domestic Waste Collection,619,Vehicle Maintenance External,219782,06/11/2017,09/11/2017,CR000200,DENNIS EAGLE LTD,312988, 641.66 
http://statistics.data.gov.uk/id/local-authority/12UE,Huntingdonshire District Council,ER01,Domestic Waste Collection,619,Vehicle Maintenance External,220181,06/11/2017,09/11/2017,CR000200,DENNIS EAGLE LTD,313419," 2,783.89 "
http://statistics.data.gov.uk/id/local-authority/12UE,Huntingdonshire District Council,EQ02,Recycling Collections,623,Vehicle Accident Damage,218516,14/11/2017,15/11/2017,CR402183,TERBERG MATEC UK LTD,96347345,"-3,716.80 "
http://statistics.data.gov.uk/id/local-authority/12UE,Huntingdonshire District Council,EQ02,Recycling Collections,623,Vehicle Accident Damage,218516,14/11/2017,15/11/2017,CR402183,TERBERG MATEC UK LTD,96347345," 4,716.80 "
http://statistics.data.gov.uk/id/local-authority/12UE,Huntingdonshire District Council,EG06,Grounds Maintenance,625,Vehicle Parts & Fittings,220711,14/11/2017,15/11/2017,CR009641,MARSHALL MOTOR GROUP LTD,58011914, 252.54 
http://statistics.data.gov.uk/id/local-authority/12UE,Huntingdonshire District Council,ER01,Domestic Waste Collection,625,Vehicle Parts & Fittings,220764,22/11/2017,23/11/2017,CR480035,AUTOELEC CAMBS,256728, 256.50 
http://statistics.data.gov.uk/id/local-authority/12UE,Huntingdonshire District Council,EG06,Grounds Maintenance,625,Vehicle Parts & Fittings,220710,14/11/2017,15/11/2017,CR009641,MARSHALL MOTOR GROUP LTD,58011659, 257.89 
http://statistics.data.gov.uk/id/local-authority/12UE,Huntingdonshire District Council,ER01,Domestic Waste Collection,625,Vehicle Parts & Fittings,219775,06/11/2017,09/11/2017,CR000141,A C COMMERCIALS,277701I, 296.50 
http://statistics.data.gov.uk/id/local-authority/12UE,Huntingdonshire District Council,ER01,Domestic Waste Collection,625,Vehicle Parts & Fittings,220791,22/11/2017,23/11/2017,CR000141,A C COMMERCIALS,277920I, 299.62 
http://statistics.data.gov.uk/id/local-authority/12UE,Huntingdonshire District Council,EG06,Grounds Maintenance,625,Vehicle Parts & Fittings,220566,15/11/2017,16/11/2017,CR000141,A C COMMERCIALS,277829I, 322.90 
http://statistics.data.gov.uk/id/local-authority/12UE,Huntingdonshire District Council,EG06,Grounds Maintenance,625,Vehicle Parts & Fittings,220566,15/11/2017,16/11/2017,CR000141,A C COMMERCIALS,277829I, 322.95 
http://statistics.data.gov.uk/id/local-authority/12UE,Huntingdonshire District Council,ER01,Domestic Waste Collection,625,Vehicle Parts & Fittings,219772,02/11/2017,02/11/2017,CR000200,DENNIS EAGLE LTD,DE11072288, 323.12 
http://statistics.data.gov.uk/id/local-authority/12UE,Huntingdonshire District Council,EG06,Grounds Maintenance,625,Vehicle Parts & Fittings,219886,02/11/2017,02/11/2017,CR000261,ERNEST DOE & SONS,709983, 330.89 
http://statistics.data.gov.uk/id/local-authority/12UE,Huntingdonshire District Council,ES01,Street Cleansing,625,Vehicle Parts & Fittings,219759,06/11/2017,09/11/2017,CR025706,AEBI SCHMIDT,60232438, 344.28 
http://statistics.data.gov.uk/id/local-authority/12UE,Huntingdonshire District Council,ER01,Domestic Waste Collection,625,Vehicle Parts & Fittings,221172,22/11/2017,23/11/2017,CR000200,DENNIS EAGLE LTD,DE11083408, 350.00 
http://statistics.data.gov.uk/id/local-authority/12UE,Huntingdonshire District Council,EG06,Grounds Maintenance,625,Vehicle Parts & Fittings,220740,15/11/2017,16/11/2017,CR030353,D & H SIGN & DISPLAY SERVICES,6699, 384.70 
http://statistics.data.gov.uk/id/local-authority/12UE,Huntingdonshire District Council,EG06,Grounds Maintenance,625,Vehicle Parts & Fittings,220740,15/11/2017,16/11/2017,CR030353,D & H SIGN & DISPLAY SERVICES,6699, 384.70 
http://statistics.data.gov.uk/id/local-authority/12UE,Huntingdonshire District Council,EG06,Grounds Maintenance,625,Vehicle Parts & Fittings,220740,15/11/2017,16/11/2017,CR030353,D & H SIGN & DISPLAY SERVICES,6699, 384.70 
http://statistics.data.gov.uk/id/local-authority/12UE,Huntingdonshire District Council,ER01,Domestic Waste Collection,625,Vehicle Parts & Fittings,220740,15/11/2017,16/11/2017,CR030353,D & H SIGN & DISPLAY SERVICES,6699, 384.70 
http://statistics.data.gov.uk/id/local-authority/12UE,Huntingdonshire District Council,ER01,Domestic Waste Collection,625,Vehicle Parts & Fittings,219760,06/11/2017,09/11/2017,CR000200,DENNIS EAGLE LTD,DE11078478, 393.52 
http://statistics.data.gov.uk/id/local-authority/12UE,Huntingdonshire District Council,ER01,Domestic Waste Collection,625,Vehicle Parts & Fittings,221137,22/11/2017,22/11/2017,CR000200,DENNIS EAGLE LTD,DE11052704, 397.28 
http://statistics.data.gov.uk/id/local-authority/12UE,Huntingdonshire District Council,ER01,Domestic Waste Collection,625,Vehicle Parts & Fittings,220730,15/11/2017,16/11/2017,CR000200,DENNIS EAGLE LTD,DE11052704, 397.28 
http://statistics.data.gov.uk/id/local-authority/12UE,Huntingdonshire District Council,ER01,Domestic Waste Collection,625,Vehicle Parts & Fittings,219888,06/11/2017,09/11/2017,CR000200,DENNIS EAGLE LTD,DE11080178, 426.32 
http://statistics.data.gov.uk/id/local-authority/12UE,Huntingdonshire District Council,MU95,Vehicle Maintenance,625,Vehicle Parts & Fittings,219932,02/11/2017,02/11/2017,CR000141,A C COMMERCIALS,277600I, 468.56 
http://statistics.data.gov.uk/id/local-authority/12UE,Huntingdonshire District Council,ER01,Domestic Waste Collection,625,Vehicle Parts & Fittings,220275,06/11/2017,09/11/2017,CR000200,DENNIS EAGLE LTD,DE11076858, 490.43 
http://statistics.data.gov.uk/id/local-authority/12UE,Huntingdonshire District Council,ER01,Domestic Waste Collection,625,Vehicle Parts & Fittings,219059,02/11/2017,02/11/2017,CR402183,TERBERG MATEC UK LTD,96347820, 536.05 
http://statistics.data.gov.uk/id/local-authority/12UE,Huntingdonshire District Council,EQ02,Recycling Collections,625,Vehicle Parts & Fittings,220729,15/11/2017,16/11/2017,CR000200,DENNIS EAGLE LTD,DE11052702, 601.36 
http://statistics.data.gov.uk/id/local-authority/12UE,Huntingdonshire District Council,ER01,Domestic Waste Collection,625,Vehicle Parts & Fittings,221135,22/11/2017,22/11/2017,CR000200,DENNIS EAGLE LTD,DE11052702, 601.36 
http://statistics.data.gov.uk/id/local-authority/12UE,Huntingdonshire District Council,EQ02,Recycling Collections,625,Vehicle Parts & Fittings,220188,06/11/2017,09/11/2017,CR000200,DENNIS EAGLE LTD,DE11080953, 629.07 
http://statistics.data.gov.uk/id/local-authority/12UE,Huntingdonshire District Council,EG06,Grounds Maintenance,625,Vehicle Parts & Fittings,220566,15/11/2017,16/11/2017,CR000141,A C COMMERCIALS,277829I, 645.80 
http://statistics.data.gov.uk/id/local-authority/12UE,Huntingdonshire District Council,EG05,Arboricultural Team,625,Vehicle Parts & Fittings,220732,22/11/2017,23/11/2017,CR479796,STUART BROWN LTD,23498, 668.92 
http://statistics.data.gov.uk/id/local-authority/12UE,Huntingdonshire District Council,EG06,Grounds Maintenance,625,Vehicle Parts & Fittings,221427,28/11/2017,30/11/2017,CR001981,DTS SOLUTIONS (UK) LTD,S000405, 868.50 
http://statistics.data.gov.uk/id/local-authority/12UE,Huntingdonshire District Council,EG06,Grounds Maintenance,625,Vehicle Parts & Fittings,220761,22/11/2017,23/11/2017,CR001981,DTS SOLUTIONS (UK) LTD,S000718, 868.50 
http://statistics.data.gov.uk/id/local-authority/12UE,Huntingdonshire District Council,EG06,Grounds Maintenance,625,Vehicle Parts & Fittings,220761,22/11/2017,23/11/2017,CR001981,DTS SOLUTIONS (UK) LTD,S000718, 868.50 
http://statistics.data.gov.uk/id/local-authority/12UE,Huntingdonshire District Council,EG06,Grounds Maintenance,625,Vehicle Parts & Fittings,220761,22/11/2017,23/11/2017,CR001981,DTS SOLUTIONS (UK) LTD,S000718, 868.50 
http://statistics.data.gov.uk/id/local-authority/12UE,Huntingdonshire District Council,EG06,Grounds Maintenance,625,Vehicle Parts & Fittings,220761,22/11/2017,23/11/2017,CR001981,DTS SOLUTIONS (UK) LTD,S000718, 868.50 
http://statistics.data.gov.uk/id/local-authority/12UE,Huntingdonshire District Council,EG06,Grounds Maintenance,625,Vehicle Parts & Fittings,221427,28/11/2017,30/11/2017,CR001981,DTS SOLUTIONS (UK) LTD,S000405, 868.50 
http://statistics.data.gov.uk/id/local-authority/12UE,Huntingdonshire District Council,EG06,Grounds Maintenance,625,Vehicle Parts & Fittings,221427,28/11/2017,30/11/2017,CR001981,DTS SOLUTIONS (UK) LTD,S000405, 868.50 
http://statistics.data.gov.uk/id/local-authority/12UE,Huntingdonshire District Council,MU95,Vehicle Maintenance,625,Vehicle Parts & Fittings,221427,28/11/2017,30/11/2017,CR001981,DTS SOLUTIONS (UK) LTD,S000405, 868.50 
http://statistics.data.gov.uk/id/local-authority/12UE,Huntingdonshire District Council,ER03,Trade Refuse,625,Vehicle Parts & Fittings,219935,02/11/2017,02/11/2017,CR001981,DTS SOLUTIONS (UK) LTD,S000590, 935.50 
http://statistics.data.gov.uk/id/local-authority/12UE,Huntingdonshire District Council,ER01,Domestic Waste Collection,625,Vehicle Parts & Fittings,220571,15/11/2017,16/11/2017,CR000200,DENNIS EAGLE LTD,DE11082334," 1,174.28 "
http://statistics.data.gov.uk/id/local-authority/12UE,Huntingdonshire District Council,EG06,Grounds Maintenance,625,Vehicle Parts & Fittings,219763,02/11/2017,02/11/2017,CR000261,ERNEST DOE & SONS,709832," 1,275.51 "
http://statistics.data.gov.uk/id/local-authority/12UE,Huntingdonshire District Council,ER01,Domestic Waste Collection,625,Vehicle Parts & Fittings,220755,22/11/2017,23/11/2017,CR000200,DENNIS EAGLE LTD,DE11083407," 1,336.57 "
http://statistics.data.gov.uk/id/local-authority/12UE,Huntingdonshire District Council,ER01,Domestic Waste Collection,625,Vehicle Parts & Fittings,219941,09/11/2017,09/11/2017,CR480661,M & N VEHICLE SERVICES,29189," 1,466.38 "
http://statistics.data.gov.uk/id/local-authority/12UE,Huntingdonshire District Council,EQ02,Recycling Collections,625,Vehicle Parts & Fittings,219453,02/11/2017,02/11/2017,CR480661,M & N VEHICLE SERVICES,29137," 1,538.38 "
http://statistics.data.gov.uk/id/local-authority/12UE,Huntingdonshire District Council,EQ02,Recycling Collections,625,Vehicle Parts & Fittings,220728,15/11/2017,16/11/2017,CR000200,DENNIS EAGLE LTD,DE11052703," 1,645.72 "
http://statistics.data.gov.uk/id/local-authority/12UE,Huntingdonshire District Council,ER01,Domestic Waste Collection,625,Vehicle Parts & Fittings,221136,22/11/2017,22/11/2017,CR000200,DENNIS EAGLE LTD,DE11052703," 1,645.72 "
http://statistics.data.gov.uk/id/local-authority/12UE,Huntingdonshire District Council,EG06,Grounds Maintenance,625,Vehicle Parts & Fittings,220189,06/11/2017,04/12/2017,CR001981,DTS SOLUTIONS (UK) LTD,," 1,737.00 "
http://statistics.data.gov.uk/id/local-authority/12UE,Huntingdonshire District Council,ER01,Domestic Waste Collection,625,Vehicle Parts & Fittings,219935,02/11/2017,02/11/2017,CR001981,DTS SOLUTIONS (UK) LTD,S000590," 1,871.00 "
http://statistics.data.gov.uk/id/local-authority/12UE,Huntingdonshire District Council,ER01,Domestic Waste Collection,626,Vehicle Oil & Lubricants,219779,02/11/2017,02/11/2017,CR409205,BARTON PETROLEUM,120878, 350.00 
http://statistics.data.gov.uk/id/local-authority/12UE,Huntingdonshire District Council,HB85,Benefits Management,636,Travel Expenses,50236,30/11/2017,27/12/2017,,,, 293.40 
http://statistics.data.gov.uk/id/local-authority/12UE,Huntingdonshire District Council,LB33,Exercise Referral,636,Travel Expenses,50236,30/11/2017,27/12/2017,,,, 444.80 
http://statistics.data.gov.uk/id/local-authority/12UE,Huntingdonshire District Council,CH08,Corporate Finance,701,Audit Fees,221593,30/11/2017,30/11/2017,CR411950,ERNST & YOUNG,37288787," 17,843.00 "
http://statistics.data.gov.uk/id/local-authority/12UE,Huntingdonshire District Council,FA01,Corporate Finance (Non Cm),702,Cash Collection,220863,16/11/2017,16/11/2017,CR422256,JADE SECURITY SERVICES LTD,16211, 292.95 
http://statistics.data.gov.uk/id/local-authority/12UE,Huntingdonshire District Council,FA01,Corporate Finance (Non Cm),702,Cash Collection,221192,22/11/2017,22/11/2017,CR422256,JADE SECURITY SERVICES LTD,16322, 292.95 
http://statistics.data.gov.uk/id/local-authority/12UE,Huntingdonshire District Council,LN90,Site & Centre Management,702,Cash Collection,220863,16/11/2017,16/11/2017,CR422256,JADE SECURITY SERVICES LTD,16211, 362.70 
http://statistics.data.gov.uk/id/local-authority/12UE,Huntingdonshire District Council,FA01,Corporate Finance (Non Cm),702,Cash Collection,50236,30/11/2017,27/12/2017,,,," 1,246.07 "
http://statistics.data.gov.uk/id/local-authority/12UE,Huntingdonshire District Council,TC90,Car Parks Operational Mgt,702,Cash Collection,220416,14/11/2017,15/11/2017,CR422256,JADE SECURITY SERVICES LTD,16321," 3,961.50 "
http://statistics.data.gov.uk/id/local-authority/12UE,Huntingdonshire District Council,TC90,Car Parks Operational Mgt,702,Cash Collection,218989,02/11/2017,02/11/2017,CR422256,JADE SECURITY SERVICES LTD,16210," 3,984.30 "
http://statistics.data.gov.uk/id/local-authority/12UE,Huntingdonshire District Council,HB85,Benefits Management,703,Bailiffs,221050,21/11/2017,21/11/2017,CR409114,NEWLYN PLC,B021017,"-1,475.09 "
http://statistics.data.gov.uk/id/local-authority/12UE,Huntingdonshire District Council,HB85,Benefits Management,703,Bailiffs,220395,08/11/2017,08/11/2017,CR422350,JACOBS,B301017, 483.36 
http://statistics.data.gov.uk/id/local-authority/12UE,Huntingdonshire District Council,HB85,Benefits Management,703,Bailiffs,220399,08/11/2017,08/11/2017,CR422350,JACOBS,B021017," 1,475.09 "
http://statistics.data.gov.uk/id/local-authority/12UE,Huntingdonshire District Council,CH08,Corporate Finance,704,Bank Charges,50236,30/11/2017,27/12/2017,,,, 255.58 
http://statistics.data.gov.uk/id/local-authority/12UE,Huntingdonshire District Council,CH08,Corporate Finance,704,Bank Charges,50236,30/11/2017,27/12/2017,,,, 387.50 
http://statistics.data.gov.uk/id/local-authority/12UE,Huntingdonshire District Council,CH08,Corporate Finance,704,Bank Charges,50236,30/11/2017,27/12/2017,,,," 6,127.21 "
http://statistics.data.gov.uk/id/local-authority/12UE,Huntingdonshire District Council,MB01,Pathfinder House,710,Catering,220687,14/11/2017,15/11/2017,CR422866,BROOKES,102071, 549.00 
http://statistics.data.gov.uk/id/local-authority/12UE,Huntingdonshire District Council,LQ21,Burgess Hall,710,Catering,221225,23/11/2017,23/11/2017,CR453802,BIG DAY EVENTS LTD,INV-0722," 3,591.00 "
http://statistics.data.gov.uk/id/local-authority/12UE,Huntingdonshire District Council,PD02,Dm Application Processing,711,Consultants,221219,23/11/2017,23/11/2017,CR404991,READING AGRICULTURAL CONSULTANTS,7847/17/632/PA, 450.00 
http://statistics.data.gov.uk/id/local-authority/12UE,Huntingdonshire District Council,L274,Ol St Ives Burgess Hall,711,Consultants,219952,08/11/2017,09/11/2017,CR424641,FOCUS CONSULTANTS 2010 LLP,941, 615.00 
http://statistics.data.gov.uk/id/local-authority/12UE,Huntingdonshire District Council,HD02,Housing Strategy,711,Consultants,220388,08/11/2017,09/11/2017,CR422497,KELSALL CONSULTANCY LTD,HDC 2017-01," 1,120.00 "
http://statistics.data.gov.uk/id/local-authority/12UE,Huntingdonshire District Council,MU76,Finance,711,Consultants,220258,06/11/2017,06/11/2017,CR424939,LAGOM ASSOCIATES LTD,154," 1,200.00 "
http://statistics.data.gov.uk/id/local-authority/12UE,Huntingdonshire District Council,QA03,Business & Enterprise Support,711,Consultants,221548,29/11/2017,29/11/2017,CR157687,RAPLEYS LLP,1007942," 1,950.00 "
http://statistics.data.gov.uk/id/local-authority/12UE,Huntingdonshire District Council,PD03,Dm Appeals,711,Consultants,219950,01/11/2017,02/11/2017,CR455436,CORNERSTONE BARRISTERS,136453," 2,500.00 "
http://statistics.data.gov.uk/id/local-authority/12UE,Huntingdonshire District Council,PA10,Viability Assessments,711,Consultants,219968,02/11/2017,02/11/2017,CR422786,HMRC - VALUATION OFFICE AGENCY,2.50E+13," 3,000.00 "
http://statistics.data.gov.uk/id/local-authority/12UE,Huntingdonshire District Council,MD20,Imd Shared Service,711,Consultants,220342,08/11/2017,09/11/2017,CR424038,NCC GROUP SECURITY SERVICES LTD,INVRMAG1002344," 3,349.69 "
http://statistics.data.gov.uk/id/local-authority/12UE,Huntingdonshire District Council,CH42,Transformation - Commercial,711,Consultants,221243,23/11/2017,23/11/2017,CR422620,EAST OF ENGLAND LGA,1000288," 4,230.00 "
http://statistics.data.gov.uk/id/local-authority/12UE,Huntingdonshire District Council,PA11,Neighbourhood Planning,711,Consultants,221220,23/11/2017,23/11/2017,CR424810,INTELLIGENT PLANS AND EXAMINATIONS (IPE) LTD,1161," 4,627.55 "
http://statistics.data.gov.uk/id/local-authority/12UE,Huntingdonshire District Council,CH42,Transformation - Commercial,711,Consultants,221243,23/11/2017,23/11/2017,CR422620,EAST OF ENGLAND LGA,1000288," 5,287.50 "
http://statistics.data.gov.uk/id/local-authority/12UE,Huntingdonshire District Council,CH42,Transformation - Commercial,711,Consultants,221243,23/11/2017,23/11/2017,CR422620,EAST OF ENGLAND LGA,1000288," 6,697.50 "
http://statistics.data.gov.uk/id/local-authority/12UE,Huntingdonshire District Council,M324,Financial Mgt System Replacmnt,711,Consultants,220257,06/11/2017,06/11/2017,CR424111,TECHNOLOGY ONE LTD,U001628," 6,755.00 "
http://statistics.data.gov.uk/id/local-authority/12UE,Huntingdonshire District Council,PD03,Dm Appeals,711,Consultants,219944,01/11/2017,02/11/2017,CR424986,MICHELLE BOLGER EXPERT LANDSCAPE CONSULTANCY,58," 6,834.68 "
http://statistics.data.gov.uk/id/local-authority/12UE,Huntingdonshire District Council,TC90,Car Parks Operational Mgt,711,Consultants,221437,29/11/2017,30/11/2017,CR478531,RTA ASSOCIATES LTD,INV-1352," 7,594.25 "
http://statistics.data.gov.uk/id/local-authority/12UE,Huntingdonshire District Council,MD20,Imd Shared Service,711,Consultants,221186,22/11/2017,23/11/2017,CR424036,EUROPEAN ELECTRONIQUE LTD,1547913," 27,000.00 "
http://statistics.data.gov.uk/id/local-authority/12UE,Huntingdonshire District Council,L274,Ol St Ives Burgess Hall,711,Consultants,221055,22/11/2017,22/11/2017,CR032423,BURMOR CONSTRUCTION,3031," 127,290.68 "
http://statistics.data.gov.uk/id/local-authority/12UE,Huntingdonshire District Council,MU04,Env Protection,715,Enforcement - Works In Default,220009,03/11/2017,09/11/2017,CR424911,BRYAN LECOCHE LTD,2582," 3,162.00 "
http://statistics.data.gov.uk/id/local-authority/12UE,Huntingdonshire District Council,HB85,Benefits Management,723,Enquiries,220655,13/11/2017,13/11/2017,CR455548,CALLCREDIT LTD,728713, 434.00 
http://statistics.data.gov.uk/id/local-authority/12UE,Huntingdonshire District Council,MU61,Legal,727,Land Registry Fee,50236,30/11/2017,27/12/2017,,,, 472.00 
http://statistics.data.gov.uk/id/local-authority/12UE,Huntingdonshire District Council,LQ21,Burgess Hall,728,Laundry,221490,29/11/2017,30/11/2017,CR029240,DRY CLEANING & LINEN CENTRE,5255, 381.58 
http://statistics.data.gov.uk/id/local-authority/12UE,Huntingdonshire District Council,QD04,Commercial Investment Strategy,729,Legal Fees,221497,28/11/2017,07/12/2017,CR480787,FREETHS  LLP,,"-6,629.50 "
http://statistics.data.gov.uk/id/local-authority/12UE,Huntingdonshire District Council,QD04,Commercial Investment Strategy,729,Legal Fees,221495,28/11/2017,07/12/2017,CR480787,FREETHS  LLP,,"-2,400.00 "
http://statistics.data.gov.uk/id/local-authority/12UE,Huntingdonshire District Council,QD04,Commercial Investment Strategy,729,Legal Fees,221496,28/11/2017,07/12/2017,CR480787,FREETHS  LLP,,-455.00 
http://statistics.data.gov.uk/id/local-authority/12UE,Huntingdonshire District Council,Q500,Commercial Investment Property,729,Legal Fees,221496,28/11/2017,07/12/2017,CR480787,FREETHS  LLP,, 455.00 
http://statistics.data.gov.uk/id/local-authority/12UE,Huntingdonshire District Council,QD04,Commercial Investment Strategy,729,Legal Fees,221496,28/11/2017,28/11/2017,CR480787,FREETHS  LLP,90255055, 455.00 
http://statistics.data.gov.uk/id/local-authority/12UE,Huntingdonshire District Council,HB85,Benefits Management,729,Legal Fees,221228,23/11/2017,23/11/2017,CR424925,PERSONAL DATA REDACTED,377096, 750.00 
http://statistics.data.gov.uk/id/local-authority/12UE,Huntingdonshire District Council,Q500,Commercial Investment Property,729,Legal Fees,221495,28/11/2017,07/12/2017,CR480787,FREETHS  LLP,," 2,400.00 "
http://statistics.data.gov.uk/id/local-authority/12UE,Huntingdonshire District Council,QD04,Commercial Investment Strategy,729,Legal Fees,221495,28/11/2017,28/11/2017,CR480787,FREETHS  LLP,90252358," 2,400.00 "
http://statistics.data.gov.uk/id/local-authority/12UE,Huntingdonshire District Council,Q500,Commercial Investment Property,729,Legal Fees,221497,28/11/2017,07/12/2017,CR480787,FREETHS  LLP,," 6,629.50 "
http://statistics.data.gov.uk/id/local-authority/12UE,Huntingdonshire District Council,QD04,Commercial Investment Strategy,729,Legal Fees,221497,28/11/2017,28/11/2017,CR480787,FREETHS  LLP,90249996," 6,629.50 "
http://statistics.data.gov.uk/id/local-authority/12UE,Huntingdonshire District Council,LQ10,Indoor Sports,730,Licences,220233,08/11/2017,09/11/2017,CR025826,LES MILLS UK,SIV217486, 255.38 
http://statistics.data.gov.uk/id/local-authority/12UE,Huntingdonshire District Council,MD23,Scdc Recharge Invoices,731,I C T Services,219889,01/11/2017,02/11/2017,CR424791,SMARTER DIGITAL SOLUTIONS,11114181," 3,700.00 "
http://statistics.data.gov.uk/id/local-authority/12UE,Huntingdonshire District Council,MH07,Hr & Payroll Services,734,Medical Fees,220855,16/11/2017,16/11/2017,CR424716,NORTH WEST ANGLIA NHS FOUNDATION TRUST,17435018," 5,214.55 "
http://statistics.data.gov.uk/id/local-authority/12UE,Huntingdonshire District Council,CF01,Civic Expenses Allowance,739,Photographic Services,220282,07/11/2017,07/11/2017,CR415398,PERSONAL DATA REDACTED,, 270.00 
http://statistics.data.gov.uk/id/local-authority/12UE,Huntingdonshire District Council,LQ21,Burgess Hall,744,Entertainments Inc Cable Tv,220647,15/11/2017,16/11/2017,CR412228,LAYTONDINGS ENTERTAINMENT LTD,45091, 300.00 
http://statistics.data.gov.uk/id/local-authority/12UE,Huntingdonshire District Council,LQ21,Burgess Hall,744,Entertainments Inc Cable Tv,221232,23/11/2017,23/11/2017,CR410213,2 TON PRODUCTIONS,339, 334.65 
http://statistics.data.gov.uk/id/local-authority/12UE,Huntingdonshire District Council,LQ21,Burgess Hall,744,Entertainments Inc Cable Tv,221469,29/11/2017,30/11/2017,CR024127,STARLITE ROADSHOW,8367, 350.00 
http://statistics.data.gov.uk/id/local-authority/12UE,Huntingdonshire District Council,LQ21,Burgess Hall,744,Entertainments Inc Cable Tv,220320,15/11/2017,16/11/2017,CR024127,STARLITE ROADSHOW,8364, 371.52 
http://statistics.data.gov.uk/id/local-authority/12UE,Huntingdonshire District Council,LQ21,Burgess Hall,744,Entertainments Inc Cable Tv,220318,15/11/2017,16/11/2017,CR024127,STARLITE ROADSHOW,8363, 540.00 
http://statistics.data.gov.uk/id/local-authority/12UE,Huntingdonshire District Council,LQ21,Burgess Hall,744,Entertainments Inc Cable Tv,221011,22/11/2017,22/11/2017,CR423571,CAMBRIDGESHIRE PHOTOBOOTHS CO UK,BHALL DEC 17, 590.00 
http://statistics.data.gov.uk/id/local-authority/12UE,Huntingdonshire District Council,LQ21,Burgess Hall,744,Entertainments Inc Cable Tv,219949,01/11/2017,02/11/2017,CR024127,STARLITE ROADSHOW,BOOGIE COSTS," 1,103.56 "
http://statistics.data.gov.uk/id/local-authority/12UE,Huntingdonshire District Council,LQ21,Burgess Hall,744,Entertainments Inc Cable Tv,219948,01/11/2017,02/11/2017,CR410213,2 TON PRODUCTIONS,336," 1,200.00 "
http://statistics.data.gov.uk/id/local-authority/12UE,Huntingdonshire District Council,LQ21,Burgess Hall,744,Entertainments Inc Cable Tv,219947,01/11/2017,02/11/2017,CR424996,INTERNATIONAL ARTISTS SPORTS MANAGEMENT,INV-0056," 3,346.67 "
http://statistics.data.gov.uk/id/local-authority/12UE,Huntingdonshire District Council,LQ21,Burgess Hall,744,Entertainments Inc Cable Tv,221226,23/11/2017,23/11/2017,CR424632,LOCO TALENT LTD,SL/1642," 3,910.00 "
http://statistics.data.gov.uk/id/local-authority/12UE,Huntingdonshire District Council,LQ21,Burgess Hall,744,Entertainments Inc Cable Tv,220809,15/11/2017,16/11/2017,CR425011,SALLY MORGAN ENTERTAINMENTS LTD,SME078," 6,038.54 "
http://statistics.data.gov.uk/id/local-authority/12UE,Huntingdonshire District Council,EQ02,Recycling Collections,747,Recycling Collections,219979,02/11/2017,02/11/2017,CR127636,AMEYCESPA (EAST) LTD,ASI44533," 12,436.21 "
http://statistics.data.gov.uk/id/local-authority/12UE,Huntingdonshire District Council,MU95,Vehicle Maintenance,755,Professional Subscriptions,220738,22/11/2017,23/11/2017,CR003104,FREIGHT TRANSPORT ASSOCIATION,300182725, 982.00 
http://statistics.data.gov.uk/id/local-authority/12UE,Huntingdonshire District Council,LN90,Site & Centre Management,772,Income Transaction Charges,50236,30/11/2017,27/12/2017,,,, 335.96 
http://statistics.data.gov.uk/id/local-authority/12UE,Huntingdonshire District Council,LQ90,Site & Centre Management,772,Income Transaction Charges,50236,30/11/2017,27/12/2017,,,," 1,384.77 "
http://statistics.data.gov.uk/id/local-authority/12UE,Huntingdonshire District Council,ES01,Street Cleansing,777,Subcontractors,221542,29/11/2017,30/11/2017,CR423450,DOBSON UK LLP,7142," 12,400.00 "
http://statistics.data.gov.uk/id/local-authority/12UE,Huntingdonshire District Council,EG05,Arboricultural Team,797,Insurance Excess,219986,02/11/2017,02/11/2017,CR003638,ZURICH MUNICIPAL,I9014," 1,164.00 "
http://statistics.data.gov.uk/id/local-authority/12UE,Huntingdonshire District Council,HC10,Renovation/Improvement Grants,800,Grants (Paid Out),220745,16/11/2017,16/11/2017,CR425016,MAYS FURNISHERS,1109," 1,114.94 "
http://statistics.data.gov.uk/id/local-authority/12UE,Huntingdonshire District Council,HC10,Renovation/Improvement Grants,800,Grants (Paid Out),220744,16/11/2017,16/11/2017,CR425015,MILLWILL FURNISHERS,724," 2,433.10 "
http://statistics.data.gov.uk/id/local-authority/12UE,Huntingdonshire District Council,H504,Disabled Facilities Grants,801,Mandatory Grants,221434,27/11/2017,28/11/2017,CR480595,M WATSON CONSTRUCTION LTD,20977,"-1,802.33 "
http://statistics.data.gov.uk/id/local-authority/12UE,Huntingdonshire District Council,H504,Disabled Facilities Grants,801,Mandatory Grants,221009,23/11/2017,23/11/2017,CR083280,TOTAL HYGIENE LTD,OP/I132013, 420.00 
http://statistics.data.gov.uk/id/local-authority/12UE,Huntingdonshire District Council,H504,Disabled Facilities Grants,801,Mandatory Grants,220213,09/11/2017,09/11/2017,CR422300,ASHCO BUILDING & MAINTENANCE SERVICES LTD,AC0214367, 550.00 
http://statistics.data.gov.uk/id/local-authority/12UE,Huntingdonshire District Council,H504,Disabled Facilities Grants,801,Mandatory Grants,221230,23/11/2017,23/11/2017,CR423458,GASWISE,64712, 720.00 
http://statistics.data.gov.uk/id/local-authority/12UE,Huntingdonshire District Council,H504,Disabled Facilities Grants,801,Mandatory Grants,220709,16/11/2017,16/11/2017,CR405796,WAYNE BINGHAM,408, 930.00 
http://statistics.data.gov.uk/id/local-authority/12UE,Huntingdonshire District Council,H504,Disabled Facilities Grants,801,Mandatory Grants,219972,02/11/2017,02/11/2017,CR480595,M WATSON CONSTRUCTION LTD,20933, 998.33 
http://statistics.data.gov.uk/id/local-authority/12UE,Huntingdonshire District Council,H504,Disabled Facilities Grants,801,Mandatory Grants,221090,23/11/2017,23/11/2017,CR000363,B. S. GRAVES ELECTRICAL LTD,25173," 1,172.99 "
http://statistics.data.gov.uk/id/local-authority/12UE,Huntingdonshire District Council,H504,Disabled Facilities Grants,801,Mandatory Grants,221491,30/11/2017,30/11/2017,CR423109,LYNCH HEALTHCARE LIMITED,INV 1410," 1,774.00 "
http://statistics.data.gov.uk/id/local-authority/12UE,Huntingdonshire District Council,H504,Disabled Facilities Grants,801,Mandatory Grants,221007,23/11/2017,23/11/2017,CR480595,M WATSON CONSTRUCTION LTD,20977," 1,802.33 "
http://statistics.data.gov.uk/id/local-authority/12UE,Huntingdonshire District Council,H504,Disabled Facilities Grants,801,Mandatory Grants,221091,23/11/2017,23/11/2017,CR480595,M WATSON CONSTRUCTION LTD,20983," 1,802.33 "
http://statistics.data.gov.uk/id/local-authority/12UE,Huntingdonshire District Council,H504,Disabled Facilities Grants,801,Mandatory Grants,220564,16/11/2017,16/11/2017,CR424786,C3S PROJECTS LIMITED,6784-3," 2,000.00 "
http://statistics.data.gov.uk/id/local-authority/12UE,Huntingdonshire District Council,H504,Disabled Facilities Grants,801,Mandatory Grants,221571,30/11/2017,30/11/2017,CR000759,STANNAH LTD Ref(20HU025),S085076378," 2,334.00 "
http://statistics.data.gov.uk/id/local-authority/12UE,Huntingdonshire District Council,H504,Disabled Facilities Grants,801,Mandatory Grants,219381,02/11/2017,02/11/2017,CR030128,B P MORSE,619," 2,555.00 "
http://statistics.data.gov.uk/id/local-authority/12UE,Huntingdonshire District Council,H504,Disabled Facilities Grants,801,Mandatory Grants,221127,23/11/2017,23/11/2017,CR480595,M WATSON CONSTRUCTION LTD,20677," 2,774.32 "
http://statistics.data.gov.uk/id/local-authority/12UE,Huntingdonshire District Council,H504,Disabled Facilities Grants,801,Mandatory Grants,221209,23/11/2017,23/11/2017,CR480595,M WATSON CONSTRUCTION LTD,20984," 2,818.14 "
http://statistics.data.gov.uk/id/local-authority/12UE,Huntingdonshire District Council,H504,Disabled Facilities Grants,801,Mandatory Grants,221562,30/11/2017,30/11/2017,CR000759,STANNAH LTD Ref(20HU025),S085071856," 2,858.00 "
http://statistics.data.gov.uk/id/local-authority/12UE,Huntingdonshire District Council,H504,Disabled Facilities Grants,801,Mandatory Grants,219875,02/11/2017,02/11/2017,CR423458,GASWISE,S085072923," 2,866.00 "
http://statistics.data.gov.uk/id/local-authority/12UE,Huntingdonshire District Council,H504,Disabled Facilities Grants,801,Mandatory Grants,219382,02/11/2017,02/11/2017,CR424686,G J PULHAM LTD,793," 2,969.00 "
http://statistics.data.gov.uk/id/local-authority/12UE,Huntingdonshire District Council,H504,Disabled Facilities Grants,801,Mandatory Grants,221592,30/11/2017,30/11/2017,CR000645,PRINCEBUILD LTD,SIN126969," 3,214.63 "
http://statistics.data.gov.uk/id/local-authority/12UE,Huntingdonshire District Council,H504,Disabled Facilities Grants,801,Mandatory Grants,221001,23/11/2017,23/11/2017,CR411475,FELGAINS CARE & MOBILITY,117359," 3,409.37 "
http://statistics.data.gov.uk/id/local-authority/12UE,Huntingdonshire District Council,H504,Disabled Facilities Grants,801,Mandatory Grants,221585,30/11/2017,30/11/2017,CR083280,TOTAL HYGIENE LTD,OP/I131596," 3,663.00 "
http://statistics.data.gov.uk/id/local-authority/12UE,Huntingdonshire District Council,H504,Disabled Facilities Grants,801,Mandatory Grants,221036,23/11/2017,23/11/2017,CR089905,BSG PROPERTY SERVICES LTD,S31812," 4,132.00 "
http://statistics.data.gov.uk/id/local-authority/12UE,Huntingdonshire District Council,H504,Disabled Facilities Grants,801,Mandatory Grants,219874,02/11/2017,02/11/2017,CR030128,B P MORSE,616," 4,460.00 "
http://statistics.data.gov.uk/id/local-authority/12UE,Huntingdonshire District Council,H504,Disabled Facilities Grants,801,Mandatory Grants,219930,23/11/2017,23/11/2017,CR424686,G J PULHAM LTD,797," 4,484.80 "
http://statistics.data.gov.uk/id/local-authority/12UE,Huntingdonshire District Council,H504,Disabled Facilities Grants,801,Mandatory Grants,220836,16/11/2017,16/11/2017,CR411475,FELGAINS CARE & MOBILITY,117112," 4,575.00 "
http://statistics.data.gov.uk/id/local-authority/12UE,Huntingdonshire District Council,H504,Disabled Facilities Grants,801,Mandatory Grants,221000,23/11/2017,23/11/2017,CR411475,FELGAINS CARE & MOBILITY,117358," 4,640.00 "
http://statistics.data.gov.uk/id/local-authority/12UE,Huntingdonshire District Council,H504,Disabled Facilities Grants,801,Mandatory Grants,218984,02/11/2017,02/11/2017,CR030128,B P MORSE,614," 4,710.00 "
http://statistics.data.gov.uk/id/local-authority/12UE,Huntingdonshire District Council,H504,Disabled Facilities Grants,801,Mandatory Grants,220165,09/11/2017,09/11/2017,CR422300,ASHCO BUILDING & MAINTENANCE SERVICES LTD,AC0214345," 4,783.13 "
http://statistics.data.gov.uk/id/local-authority/12UE,Huntingdonshire District Council,H504,Disabled Facilities Grants,801,Mandatory Grants,219383,02/11/2017,02/11/2017,CR422148,HD PROPERTY SERVICES,SI-99," 5,265.00 "
http://statistics.data.gov.uk/id/local-authority/12UE,Huntingdonshire District Council,H504,Disabled Facilities Grants,801,Mandatory Grants,220578,16/11/2017,16/11/2017,CR423401,CAREBASE,71566," 5,390.00 "
http://statistics.data.gov.uk/id/local-authority/12UE,Huntingdonshire District Council,H504,Disabled Facilities Grants,801,Mandatory Grants,221546,30/11/2017,30/11/2017,CR030128,B P MORSE,622," 5,495.00 "
http://statistics.data.gov.uk/id/local-authority/12UE,Huntingdonshire District Council,H504,Disabled Facilities Grants,801,Mandatory Grants,221560,30/11/2017,30/11/2017,CR000759,STANNAH LTD Ref(20HU025),S085075962," 5,686.00 "
http://statistics.data.gov.uk/id/local-authority/12UE,Huntingdonshire District Council,H504,Disabled Facilities Grants,801,Mandatory Grants,221128,23/11/2017,23/11/2017,CR422300,ASHCO BUILDING & MAINTENANCE SERVICES LTD,AC0214365," 5,857.69 "
http://statistics.data.gov.uk/id/local-authority/12UE,Huntingdonshire District Council,H504,Disabled Facilities Grants,801,Mandatory Grants,221480,30/11/2017,30/11/2017,CR423458,GASWISE,64951," 5,913.00 "
http://statistics.data.gov.uk/id/local-authority/12UE,Huntingdonshire District Council,H504,Disabled Facilities Grants,801,Mandatory Grants,221033,23/11/2017,23/11/2017,CR089905,BSG PROPERTY SERVICES LTD,532699," 6,228.00 "
http://statistics.data.gov.uk/id/local-authority/12UE,Huntingdonshire District Council,H504,Disabled Facilities Grants,801,Mandatory Grants,219876,02/11/2017,02/11/2017,CR423458,GASWISE,64550," 6,239.00 "
http://statistics.data.gov.uk/id/local-authority/12UE,Huntingdonshire District Council,H504,Disabled Facilities Grants,801,Mandatory Grants,220286,09/11/2017,09/11/2017,CR424686,G J PULHAM LTD,792," 6,475.00 "
http://statistics.data.gov.uk/id/local-authority/12UE,Huntingdonshire District Council,H504,Disabled Facilities Grants,801,Mandatory Grants,220410,09/11/2017,09/11/2017,CR424786,C3S PROJECTS LIMITED,6784-3," 6,563.10 "
http://statistics.data.gov.uk/id/local-authority/12UE,Huntingdonshire District Council,H504,Disabled Facilities Grants,801,Mandatory Grants,221584,30/11/2017,30/11/2017,CR030128,B P MORSE,613," 7,068.00 "
http://statistics.data.gov.uk/id/local-authority/12UE,Huntingdonshire District Council,H504,Disabled Facilities Grants,801,Mandatory Grants,219873,02/11/2017,02/11/2017,CR423458,GASWISE,64879," 7,538.40 "
http://statistics.data.gov.uk/id/local-authority/12UE,Huntingdonshire District Council,H504,Disabled Facilities Grants,801,Mandatory Grants,219872,02/11/2017,02/11/2017,CR422148,HD PROPERTY SERVICES,SI-88," 7,836.00 "
http://statistics.data.gov.uk/id/local-authority/12UE,Huntingdonshire District Council,H504,Disabled Facilities Grants,801,Mandatory Grants,220624,16/11/2017,16/11/2017,CR089905,BSG PROPERTY SERVICES LTD,S32177," 10,152.65 "
http://statistics.data.gov.uk/id/local-authority/12UE,Huntingdonshire District Council,H504,Disabled Facilities Grants,801,Mandatory Grants,219363,02/11/2017,02/11/2017,CR422148,HD PROPERTY SERVICES,SI-97," 12,072.00 "
http://statistics.data.gov.uk/id/local-authority/12UE,Huntingdonshire District Council,H504,Disabled Facilities Grants,801,Mandatory Grants,221551,30/11/2017,30/11/2017,CR422300,ASHCO BUILDING & MAINTENANCE SERVICES LTD,AC0214369," 12,348.13 "
http://statistics.data.gov.uk/id/local-authority/12UE,Huntingdonshire District Council,H504,Disabled Facilities Grants,801,Mandatory Grants,221125,23/11/2017,23/11/2017,CR089905,BSG PROPERTY SERVICES LTD,S33210," 16,065.60 "
http://statistics.data.gov.uk/id/local-authority/12UE,Huntingdonshire District Council,H504,Disabled Facilities Grants,801,Mandatory Grants,221547,30/11/2017,30/11/2017,CR422300,ASHCO BUILDING & MAINTENANCE SERVICES LTD,AC0214355," 21,251.08 "
http://statistics.data.gov.uk/id/local-authority/12UE,Huntingdonshire District Council,TP01,Concessionary Fares,810,Contribution (Paid Out),220291,08/11/2017,09/11/2017,CR455657,HACT,1045," 2,150.38 "
http://statistics.data.gov.uk/id/local-authority/12UE,Huntingdonshire District Council,PA05,Planning Projects General,810,Contribution (Paid Out),220824,16/11/2017,16/11/2017,CR006678,CAMBRIDGESHIRE COUNTY COUNCIL,10761810," 6,662.50 "
http://statistics.data.gov.uk/id/local-authority/12UE,Huntingdonshire District Council,HH01,Homelessness,816,Incentive Payment,221107,23/11/2017,23/11/2017,CR409608,BELVOIR LETTINGS,PERSONAL DATA REDACTED, 500.00 
http://statistics.data.gov.uk/id/local-authority/12UE,Huntingdonshire District Council,HH01,Homelessness,816,Incentive Payment,221106,23/11/2017,23/11/2017,CR409608,BELVOIR LETTINGS,PERSONAL DATA REDACTED, 850.00 
http://statistics.data.gov.uk/id/local-authority/12UE,Huntingdonshire District Council,HH01,Homelessness,816,Incentive Payment,617747,20/11/2017,20/11/2017,CR134826,CAMBRIDGE HOUSING SOCIETY LTD,DDC009-000-02-X," 1,500.00 "
http://statistics.data.gov.uk/id/local-authority/12UE,Huntingdonshire District Council,HH01,Homelessness,816,Incentive Payment,220391,08/11/2017,09/11/2017,CR425002,MOBILE HOME SALES & MANAGEMENT LIMITED,2," 2,100.00 "
http://statistics.data.gov.uk/id/local-authority/12UE,Huntingdonshire District Council,HH01,Homelessness,818,Bed & Breakfast Payment,220865,16/11/2017,16/11/2017,CR401969,ELEPHANT & CASTLE FREEHOUSE & MOTEL,PO28329 E&C,-350.00 
http://statistics.data.gov.uk/id/local-authority/12UE,Huntingdonshire District Council,HH01,Homelessness,818,Bed & Breakfast Payment,220866,16/11/2017,16/11/2017,CR401969,ELEPHANT & CASTLE FREEHOUSE & MOTEL,PO28330 E&C2,-350.00 
http://statistics.data.gov.uk/id/local-authority/12UE,Huntingdonshire District Council,HH01,Homelessness,818,Bed & Breakfast Payment,618239,30/11/2017,30/11/2017,CR160753,JAZ YORKS LTD,384/856, 262.50 
http://statistics.data.gov.uk/id/local-authority/12UE,Huntingdonshire District Council,HH01,Homelessness,818,Bed & Breakfast Payment,618240,30/11/2017,30/11/2017,CR160753,JAZ YORKS LTD,384/854, 262.50 
http://statistics.data.gov.uk/id/local-authority/12UE,Huntingdonshire District Council,HH01,Homelessness,818,Bed & Breakfast Payment,618241,30/11/2017,30/11/2017,CR160753,JAZ YORKS LTD,384/858, 262.50 
http://statistics.data.gov.uk/id/local-authority/12UE,Huntingdonshire District Council,HH01,Homelessness,818,Bed & Breakfast Payment,220377,08/11/2017,09/11/2017,CR160753,JAZ YORKS LTD,384/841, 262.50 
http://statistics.data.gov.uk/id/local-authority/12UE,Huntingdonshire District Council,HH01,Homelessness,818,Bed & Breakfast Payment,618246,30/11/2017,30/11/2017,CR160753,JAZ YORKS LTD,384/851, 262.50 
http://statistics.data.gov.uk/id/local-authority/12UE,Huntingdonshire District Council,HH01,Homelessness,818,Bed & Breakfast Payment,220375,08/11/2017,09/11/2017,CR160753,JAZ YORKS LTD,384/845, 262.50 
http://statistics.data.gov.uk/id/local-authority/12UE,Huntingdonshire District Council,HH01,Homelessness,818,Bed & Breakfast Payment,220376,08/11/2017,09/11/2017,CR160753,JAZ YORKS LTD,384/843, 262.50 
http://statistics.data.gov.uk/id/local-authority/12UE,Huntingdonshire District Council,HH01,Homelessness,818,Bed & Breakfast Payment,220368,08/11/2017,09/11/2017,CR160753,JAZ YORKS LTD,384/849, 262.50 
http://statistics.data.gov.uk/id/local-authority/12UE,Huntingdonshire District Council,HH01,Homelessness,818,Bed & Breakfast Payment,616889,02/11/2017,02/11/2017,CR410824,COACH & HORSES,303, 270.00 
http://statistics.data.gov.uk/id/local-authority/12UE,Huntingdonshire District Council,HH01,Homelessness,818,Bed & Breakfast Payment,616889,02/11/2017,02/11/2017,CR410824,COACH & HORSES,303, 280.00 
http://statistics.data.gov.uk/id/local-authority/12UE,Huntingdonshire District Council,HH01,Homelessness,818,Bed & Breakfast Payment,617171,08/11/2017,09/11/2017,CR410824,COACH & HORSES,304, 280.00 
http://statistics.data.gov.uk/id/local-authority/12UE,Huntingdonshire District Council,HH01,Homelessness,818,Bed & Breakfast Payment,617497,15/11/2017,16/11/2017,CR410824,COACH & HORSES,305, 280.00 
http://statistics.data.gov.uk/id/local-authority/12UE,Huntingdonshire District Council,HH01,Homelessness,818,Bed & Breakfast Payment,617772,23/11/2017,23/11/2017,CR410824,COACH & HORSES,306, 280.00 
http://statistics.data.gov.uk/id/local-authority/12UE,Huntingdonshire District Council,HH01,Homelessness,818,Bed & Breakfast Payment,618255,30/11/2017,30/11/2017,CR410824,COACH & HORSES,307, 280.00 
http://statistics.data.gov.uk/id/local-authority/12UE,Huntingdonshire District Council,HH01,Homelessness,818,Bed & Breakfast Payment,616889,02/11/2017,02/11/2017,CR410824,COACH & HORSES,303, 280.00 
http://statistics.data.gov.uk/id/local-authority/12UE,Huntingdonshire District Council,HH01,Homelessness,818,Bed & Breakfast Payment,617171,08/11/2017,09/11/2017,CR410824,COACH & HORSES,304, 280.00 
http://statistics.data.gov.uk/id/local-authority/12UE,Huntingdonshire District Council,HH01,Homelessness,818,Bed & Breakfast Payment,617497,15/11/2017,16/11/2017,CR410824,COACH & HORSES,305, 280.00 
http://statistics.data.gov.uk/id/local-authority/12UE,Huntingdonshire District Council,HH01,Homelessness,818,Bed & Breakfast Payment,617772,23/11/2017,23/11/2017,CR410824,COACH & HORSES,306, 280.00 
http://statistics.data.gov.uk/id/local-authority/12UE,Huntingdonshire District Council,HH01,Homelessness,818,Bed & Breakfast Payment,618255,30/11/2017,30/11/2017,CR410824,COACH & HORSES,307, 280.00 
http://statistics.data.gov.uk/id/local-authority/12UE,Huntingdonshire District Council,HH01,Homelessness,818,Bed & Breakfast Payment,220194,08/11/2017,09/11/2017,CR424138,RENT CONNECT,RC-HDC022, 304.00 
http://statistics.data.gov.uk/id/local-authority/12UE,Huntingdonshire District Council,HH01,Homelessness,818,Bed & Breakfast Payment,221126,23/11/2017,23/11/2017,CR424138,RENT CONNECT,RC-HDC023, 315.00 
http://statistics.data.gov.uk/id/local-authority/12UE,Huntingdonshire District Council,HH01,Homelessness,818,Bed & Breakfast Payment,616889,02/11/2017,02/11/2017,CR410824,COACH & HORSES,303, 315.00 
http://statistics.data.gov.uk/id/local-authority/12UE,Huntingdonshire District Council,HH01,Homelessness,818,Bed & Breakfast Payment,617171,08/11/2017,09/11/2017,CR410824,COACH & HORSES,304, 315.00 
http://statistics.data.gov.uk/id/local-authority/12UE,Huntingdonshire District Council,HH01,Homelessness,818,Bed & Breakfast Payment,617497,15/11/2017,16/11/2017,CR410824,COACH & HORSES,305, 315.00 
http://statistics.data.gov.uk/id/local-authority/12UE,Huntingdonshire District Council,HH01,Homelessness,818,Bed & Breakfast Payment,617772,23/11/2017,23/11/2017,CR410824,COACH & HORSES,306, 315.00 
http://statistics.data.gov.uk/id/local-authority/12UE,Huntingdonshire District Council,HH01,Homelessness,818,Bed & Breakfast Payment,618255,30/11/2017,30/11/2017,CR410824,COACH & HORSES,307, 315.00 
http://statistics.data.gov.uk/id/local-authority/12UE,Huntingdonshire District Council,HH01,Homelessness,818,Bed & Breakfast Payment,617171,08/11/2017,09/11/2017,CR410824,COACH & HORSES,304, 315.00 
http://statistics.data.gov.uk/id/local-authority/12UE,Huntingdonshire District Council,HH01,Homelessness,818,Bed & Breakfast Payment,617497,15/11/2017,16/11/2017,CR410824,COACH & HORSES,305, 315.00 
http://statistics.data.gov.uk/id/local-authority/12UE,Huntingdonshire District Council,HH01,Homelessness,818,Bed & Breakfast Payment,617772,23/11/2017,23/11/2017,CR410824,COACH & HORSES,306, 315.00 
http://statistics.data.gov.uk/id/local-authority/12UE,Huntingdonshire District Council,HH01,Homelessness,818,Bed & Breakfast Payment,618255,30/11/2017,30/11/2017,CR410824,COACH & HORSES,307, 315.00 
http://statistics.data.gov.uk/id/local-authority/12UE,Huntingdonshire District Council,HH01,Homelessness,818,Bed & Breakfast Payment,617497,15/11/2017,16/11/2017,CR410824,COACH & HORSES,305, 315.00 
http://statistics.data.gov.uk/id/local-authority/12UE,Huntingdonshire District Council,HH01,Homelessness,818,Bed & Breakfast Payment,617772,23/11/2017,23/11/2017,CR410824,COACH & HORSES,306, 315.00 
http://statistics.data.gov.uk/id/local-authority/12UE,Huntingdonshire District Council,HH01,Homelessness,818,Bed & Breakfast Payment,618255,30/11/2017,30/11/2017,CR410824,COACH & HORSES,307, 315.00 
http://statistics.data.gov.uk/id/local-authority/12UE,Huntingdonshire District Council,HH01,Homelessness,818,Bed & Breakfast Payment,618242,30/11/2017,30/11/2017,CR160753,JAZ YORKS LTD,384/855, 320.84 
http://statistics.data.gov.uk/id/local-authority/12UE,Huntingdonshire District Council,HH01,Homelessness,818,Bed & Breakfast Payment,618243,30/11/2017,30/11/2017,CR160753,JAZ YORKS LTD,384/857, 320.84 
http://statistics.data.gov.uk/id/local-authority/12UE,Huntingdonshire District Council,HH01,Homelessness,818,Bed & Breakfast Payment,618244,30/11/2017,30/11/2017,CR160753,JAZ YORKS LTD,384/853, 320.84 
http://statistics.data.gov.uk/id/local-authority/12UE,Huntingdonshire District Council,HH01,Homelessness,818,Bed & Breakfast Payment,220379,08/11/2017,09/11/2017,CR160753,JAZ YORKS LTD,384/839, 320.84 
http://statistics.data.gov.uk/id/local-authority/12UE,Huntingdonshire District Council,HH01,Homelessness,818,Bed & Breakfast Payment,219810,02/11/2017,02/11/2017,CR423164,UKOS PROJECTS LTD,EC1723, 350.00 
http://statistics.data.gov.uk/id/local-authority/12UE,Huntingdonshire District Council,HH01,Homelessness,818,Bed & Breakfast Payment,219810,02/11/2017,02/11/2017,CR423164,UKOS PROJECTS LTD,EC1723, 350.00 
http://statistics.data.gov.uk/id/local-authority/12UE,Huntingdonshire District Council,HH01,Homelessness,818,Bed & Breakfast Payment,220648,15/11/2017,16/11/2017,CR401969,ELEPHANT & CASTLE FREEHOUSE & MOTEL,EC1725, 350.00 
http://statistics.data.gov.uk/id/local-authority/12UE,Huntingdonshire District Council,HH01,Homelessness,818,Bed & Breakfast Payment,220663,15/11/2017,16/11/2017,CR401969,ELEPHANT & CASTLE FREEHOUSE & MOTEL,EC1724, 350.00 
http://statistics.data.gov.uk/id/local-authority/12UE,Huntingdonshire District Council,HH01,Homelessness,818,Bed & Breakfast Payment,220872,16/11/2017,17/11/2017,CR423164,UKOS PROJECTS LTD,EC1724, 350.00 
http://statistics.data.gov.uk/id/local-authority/12UE,Huntingdonshire District Council,HH01,Homelessness,818,Bed & Breakfast Payment,220983,16/11/2017,17/11/2017,CR423164,UKOS PROJECTS LTD,EC1725, 350.00 
http://statistics.data.gov.uk/id/local-authority/12UE,Huntingdonshire District Council,HH01,Homelessness,818,Bed & Breakfast Payment,221088,23/11/2017,23/11/2017,CR423164,UKOS PROJECTS LTD,EC1726, 350.00 
http://statistics.data.gov.uk/id/local-authority/12UE,Huntingdonshire District Council,HH01,Homelessness,818,Bed & Breakfast Payment,221436,30/11/2017,30/11/2017,CR423164,UKOS PROJECTS LTD,EC1727, 350.00 
http://statistics.data.gov.uk/id/local-authority/12UE,Huntingdonshire District Council,HH01,Homelessness,818,Bed & Breakfast Payment,220371,08/11/2017,09/11/2017,CR160753,JAZ YORKS LTD,384/846, 379.17 
http://statistics.data.gov.uk/id/local-authority/12UE,Huntingdonshire District Council,HH01,Homelessness,818,Bed & Breakfast Payment,220372,08/11/2017,09/11/2017,CR160753,JAZ YORKS LTD,384/844, 379.17 
http://statistics.data.gov.uk/id/local-authority/12UE,Huntingdonshire District Council,HH01,Homelessness,818,Bed & Breakfast Payment,220373,08/11/2017,09/11/2017,CR160753,JAZ YORKS LTD,384/842, 379.17 
http://statistics.data.gov.uk/id/local-authority/12UE,Huntingdonshire District Council,HH01,Homelessness,818,Bed & Breakfast Payment,220374,08/11/2017,09/11/2017,CR160753,JAZ YORKS LTD,384/848, 379.17 
http://statistics.data.gov.uk/id/local-authority/12UE,Huntingdonshire District Council,HH01,Homelessness,818,Bed & Breakfast Payment,220378,08/11/2017,09/11/2017,CR160753,JAZ YORKS LTD,384/840, 379.17 
http://statistics.data.gov.uk/id/local-authority/12UE,Huntingdonshire District Council,HH01,Homelessness,818,Bed & Breakfast Payment,616889,02/11/2017,02/11/2017,CR410824,COACH & HORSES,303, 385.00 
http://statistics.data.gov.uk/id/local-authority/12UE,Huntingdonshire District Council,HH01,Homelessness,818,Bed & Breakfast Payment,617171,08/11/2017,09/11/2017,CR410824,COACH & HORSES,304, 385.00 
http://statistics.data.gov.uk/id/local-authority/12UE,Huntingdonshire District Council,HH01,Homelessness,818,Bed & Breakfast Payment,617497,15/11/2017,16/11/2017,CR410824,COACH & HORSES,305, 385.00 
http://statistics.data.gov.uk/id/local-authority/12UE,Huntingdonshire District Council,HH01,Homelessness,818,Bed & Breakfast Payment,617772,23/11/2017,23/11/2017,CR410824,COACH & HORSES,306, 385.00 
http://statistics.data.gov.uk/id/local-authority/12UE,Huntingdonshire District Council,HH01,Homelessness,818,Bed & Breakfast Payment,618255,30/11/2017,30/11/2017,CR410824,COACH & HORSES,307, 385.00 
http://statistics.data.gov.uk/id/local-authority/12UE,Huntingdonshire District Council,HH01,Homelessness,818,Bed & Breakfast Payment,616889,02/11/2017,02/11/2017,CR410824,COACH & HORSES,303, 385.00 
http://statistics.data.gov.uk/id/local-authority/12UE,Huntingdonshire District Council,HH01,Homelessness,818,Bed & Breakfast Payment,617171,08/11/2017,09/11/2017,CR410824,COACH & HORSES,304, 385.00 
http://statistics.data.gov.uk/id/local-authority/12UE,Huntingdonshire District Council,HH01,Homelessness,818,Bed & Breakfast Payment,617497,15/11/2017,16/11/2017,CR410824,COACH & HORSES,305, 385.00 
http://statistics.data.gov.uk/id/local-authority/12UE,Huntingdonshire District Council,HH01,Homelessness,818,Bed & Breakfast Payment,617772,23/11/2017,23/11/2017,CR410824,COACH & HORSES,306, 385.00 
http://statistics.data.gov.uk/id/local-authority/12UE,Huntingdonshire District Council,HH01,Homelessness,818,Bed & Breakfast Payment,617171,08/11/2017,09/11/2017,CR410824,COACH & HORSES,304, 385.00 
http://statistics.data.gov.uk/id/local-authority/12UE,Huntingdonshire District Council,HH01,Homelessness,818,Bed & Breakfast Payment,617497,15/11/2017,16/11/2017,CR410824,COACH & HORSES,305, 385.00 
http://statistics.data.gov.uk/id/local-authority/12UE,Huntingdonshire District Council,HH01,Homelessness,818,Bed & Breakfast Payment,617772,23/11/2017,23/11/2017,CR410824,COACH & HORSES,306, 385.00 
http://statistics.data.gov.uk/id/local-authority/12UE,Huntingdonshire District Council,HH01,Homelessness,818,Bed & Breakfast Payment,618255,30/11/2017,30/11/2017,CR410824,COACH & HORSES,307, 385.00 
http://statistics.data.gov.uk/id/local-authority/12UE,Huntingdonshire District Council,HH01,Homelessness,818,Bed & Breakfast Payment,617497,15/11/2017,16/11/2017,CR410824,COACH & HORSES,305, 385.00 
http://statistics.data.gov.uk/id/local-authority/12UE,Huntingdonshire District Council,HH01,Homelessness,818,Bed & Breakfast Payment,617772,23/11/2017,23/11/2017,CR410824,COACH & HORSES,306, 385.00 
http://statistics.data.gov.uk/id/local-authority/12UE,Huntingdonshire District Council,HH01,Homelessness,818,Bed & Breakfast Payment,618255,30/11/2017,30/11/2017,CR410824,COACH & HORSES,307, 385.00 
http://statistics.data.gov.uk/id/local-authority/12UE,Huntingdonshire District Council,HH01,Homelessness,818,Bed & Breakfast Payment,616889,02/11/2017,02/11/2017,CR410824,COACH & HORSES,303, 455.00 
http://statistics.data.gov.uk/id/local-authority/12UE,Huntingdonshire District Council,HH01,Homelessness,818,Bed & Breakfast Payment,221518,30/11/2017,30/11/2017,CR453752,THE STATION HOTEL,25/2017, 560.00 
http://statistics.data.gov.uk/id/local-authority/12UE,Huntingdonshire District Council,HH01,Homelessness,818,Bed & Breakfast Payment,220194,08/11/2017,09/11/2017,CR424138,RENT CONNECT,RC-HDC022, 570.00 
http://statistics.data.gov.uk/id/local-authority/12UE,Huntingdonshire District Council,HH01,Homelessness,818,Bed & Breakfast Payment,221126,23/11/2017,23/11/2017,CR424138,RENT CONNECT,RC-HDC023, 570.00 
http://statistics.data.gov.uk/id/local-authority/12UE,Huntingdonshire District Council,HH01,Homelessness,818,Bed & Breakfast Payment,221126,23/11/2017,23/11/2017,CR424138,RENT CONNECT,RC-HDC023, 570.00 
http://statistics.data.gov.uk/id/local-authority/12UE,Huntingdonshire District Council,HH01,Homelessness,818,Bed & Breakfast Payment,221126,23/11/2017,23/11/2017,CR424138,RENT CONNECT,RC-HDC023, 630.00 
http://statistics.data.gov.uk/id/local-authority/12UE,Huntingdonshire District Council,HH01,Homelessness,818,Bed & Breakfast Payment,220194,08/11/2017,09/11/2017,CR424138,RENT CONNECT,RC-HDC022, 675.00 
http://statistics.data.gov.uk/id/local-authority/12UE,Huntingdonshire District Council,HH01,Homelessness,818,Bed & Breakfast Payment,221126,23/11/2017,23/11/2017,CR424138,RENT CONNECT,RC-HDC023, 675.00 
http://statistics.data.gov.uk/id/local-authority/12UE,Huntingdonshire District Council,HH01,Homelessness,818,Bed & Breakfast Payment,221126,23/11/2017,23/11/2017,CR424138,RENT CONNECT,RC-HDC023, 675.00 
http://statistics.data.gov.uk/id/local-authority/12UE,Huntingdonshire District Council,HH01,Homelessness,818,Bed & Breakfast Payment,220194,08/11/2017,09/11/2017,CR424138,RENT CONNECT,RC-HDC022, 675.00 
http://statistics.data.gov.uk/id/local-authority/12UE,Huntingdonshire District Council,HH01,Homelessness,818,Bed & Breakfast Payment,221126,23/11/2017,23/11/2017,CR424138,RENT CONNECT,RC-HDC023, 675.00 
http://statistics.data.gov.uk/id/local-authority/12UE,Huntingdonshire District Council,HH01,Homelessness,818,Bed & Breakfast Payment,220194,08/11/2017,09/11/2017,CR424138,RENT CONNECT,RC-HDC022, 675.00 
http://statistics.data.gov.uk/id/local-authority/12UE,Huntingdonshire District Council,HH01,Homelessness,818,Bed & Breakfast Payment,221126,23/11/2017,23/11/2017,CR424138,RENT CONNECT,RC-HDC023, 675.00 
http://statistics.data.gov.uk/id/local-authority/12UE,Huntingdonshire District Council,HH01,Homelessness,818,Bed & Breakfast Payment,220194,08/11/2017,09/11/2017,CR424138,RENT CONNECT,RC-HDC022, 675.00 
http://statistics.data.gov.uk/id/local-authority/12UE,Huntingdonshire District Council,HH01,Homelessness,818,Bed & Breakfast Payment,221126,23/11/2017,23/11/2017,CR424138,RENT CONNECT,RC-HDC023, 675.00 
http://statistics.data.gov.uk/id/local-authority/12UE,Huntingdonshire District Council,HH01,Homelessness,818,Bed & Breakfast Payment,220194,08/11/2017,09/11/2017,CR424138,RENT CONNECT,RC-HDC022, 675.00 
http://statistics.data.gov.uk/id/local-authority/12UE,Huntingdonshire District Council,HH01,Homelessness,818,Bed & Breakfast Payment,221126,23/11/2017,23/11/2017,CR424138,RENT CONNECT,RC-HDC023, 675.00 
http://statistics.data.gov.uk/id/local-authority/12UE,Huntingdonshire District Council,HH01,Homelessness,818,Bed & Breakfast Payment,220194,08/11/2017,09/11/2017,CR424138,RENT CONNECT,RC-HDC022, 675.00 
http://statistics.data.gov.uk/id/local-authority/12UE,Huntingdonshire District Council,HH01,Homelessness,818,Bed & Breakfast Payment,220194,08/11/2017,09/11/2017,CR424138,RENT CONNECT,RC-HDC022, 675.00 
http://statistics.data.gov.uk/id/local-authority/12UE,Huntingdonshire District Council,HH01,Homelessness,818,Bed & Breakfast Payment,221126,23/11/2017,23/11/2017,CR424138,RENT CONNECT,RC-HDC023, 675.00 
http://statistics.data.gov.uk/id/local-authority/12UE,Huntingdonshire District Council,HH01,Homelessness,818,Bed & Breakfast Payment,220194,08/11/2017,09/11/2017,CR424138,RENT CONNECT,RC-HDC022, 675.00 
http://statistics.data.gov.uk/id/local-authority/12UE,Huntingdonshire District Council,HH01,Homelessness,818,Bed & Breakfast Payment,221126,23/11/2017,23/11/2017,CR424138,RENT CONNECT,RC-HDC023, 675.00 
http://statistics.data.gov.uk/id/local-authority/12UE,Huntingdonshire District Council,HH01,Homelessness,818,Bed & Breakfast Payment,221126,23/11/2017,23/11/2017,CR424138,RENT CONNECT,RC-HDC023, 675.00 
http://statistics.data.gov.uk/id/local-authority/12UE,Huntingdonshire District Council,HH01,Homelessness,818,Bed & Breakfast Payment,220381,08/11/2017,09/11/2017,CR453752,THE STATION HOTEL,18/2017, 700.00 
http://statistics.data.gov.uk/id/local-authority/12UE,Huntingdonshire District Council,HH01,Homelessness,818,Bed & Breakfast Payment,221096,23/11/2017,23/11/2017,CR453752,THE STATION HOTEL,20/2017, 700.00 
http://statistics.data.gov.uk/id/local-authority/12UE,Huntingdonshire District Council,HH01,Homelessness,818,Bed & Breakfast Payment,221126,23/11/2017,23/11/2017,CR424138,RENT CONNECT,RC-HDC023, 715.00 
http://statistics.data.gov.uk/id/local-authority/12UE,Huntingdonshire District Council,HH01,Homelessness,818,Bed & Breakfast Payment,220382,08/11/2017,09/11/2017,CR453752,THE STATION HOTEL,19/2017, 770.00 
http://statistics.data.gov.uk/id/local-authority/12UE,Huntingdonshire District Council,HH01,Homelessness,818,Bed & Breakfast Payment,221101,23/11/2017,23/11/2017,CR453752,THE STATION HOTEL,22/2017, 770.00 
http://statistics.data.gov.uk/id/local-authority/12UE,Huntingdonshire District Council,HH01,Homelessness,818,Bed & Breakfast Payment,220194,08/11/2017,09/11/2017,CR424138,RENT CONNECT,RC-HDC022, 825.00 
http://statistics.data.gov.uk/id/local-authority/12UE,Huntingdonshire District Council,HH01,Homelessness,818,Bed & Breakfast Payment,221126,23/11/2017,23/11/2017,CR424138,RENT CONNECT,RC-HDC023, 825.00 
http://statistics.data.gov.uk/id/local-authority/12UE,Huntingdonshire District Council,HH01,Homelessness,818,Bed & Breakfast Payment,220194,08/11/2017,09/11/2017,CR424138,RENT CONNECT,RC-HDC022, 825.00 
http://statistics.data.gov.uk/id/local-authority/12UE,Huntingdonshire District Council,HH01,Homelessness,818,Bed & Breakfast Payment,221126,23/11/2017,23/11/2017,CR424138,RENT CONNECT,RC-HDC023, 825.00 
http://statistics.data.gov.uk/id/local-authority/12UE,Huntingdonshire District Council,HH01,Homelessness,818,Bed & Breakfast Payment,220194,08/11/2017,09/11/2017,CR424138,RENT CONNECT,RC-HDC022, 825.00 
http://statistics.data.gov.uk/id/local-authority/12UE,Huntingdonshire District Council,HH01,Homelessness,818,Bed & Breakfast Payment,220194,08/11/2017,09/11/2017,CR424138,RENT CONNECT,RC-HDC022, 825.00 
http://statistics.data.gov.uk/id/local-authority/12UE,Huntingdonshire District Council,HH01,Homelessness,818,Bed & Breakfast Payment,221126,23/11/2017,23/11/2017,CR424138,RENT CONNECT,RC-HDC023, 825.00 
http://statistics.data.gov.uk/id/local-authority/12UE,Huntingdonshire District Council,HH01,Homelessness,818,Bed & Breakfast Payment,220194,08/11/2017,09/11/2017,CR424138,RENT CONNECT,RC-HDC022, 825.00 
http://statistics.data.gov.uk/id/local-authority/12UE,Huntingdonshire District Council,HH01,Homelessness,818,Bed & Breakfast Payment,221126,23/11/2017,23/11/2017,CR424138,RENT CONNECT,RC-HDC023, 825.00 
http://statistics.data.gov.uk/id/local-authority/12UE,Huntingdonshire District Council,HH01,Homelessness,818,Bed & Breakfast Payment,220383,08/11/2017,09/11/2017,CR453752,THE STATION HOTEL,17/2017, 825.00 
http://statistics.data.gov.uk/id/local-authority/12UE,Huntingdonshire District Council,HH01,Homelessness,818,Bed & Breakfast Payment,221510,30/11/2017,30/11/2017,CR453752,THE STATION HOTEL,24/2017, 850.00 
http://statistics.data.gov.uk/id/local-authority/12UE,Huntingdonshire District Council,HH01,Homelessness,818,Bed & Breakfast Payment,221099,23/11/2017,23/11/2017,CR453752,THE STATION HOTEL,21/2017, 880.00 
http://statistics.data.gov.uk/id/local-authority/12UE,Huntingdonshire District Council,HH01,Homelessness,818,Bed & Breakfast Payment,220194,08/11/2017,09/11/2017,CR424138,RENT CONNECT,RC-HDC022, 900.00 
http://statistics.data.gov.uk/id/local-authority/12UE,Huntingdonshire District Council,HH01,Homelessness,818,Bed & Breakfast Payment,221126,23/11/2017,23/11/2017,CR424138,RENT CONNECT,RC-HDC023, 900.00 
http://statistics.data.gov.uk/id/local-authority/12UE,Huntingdonshire District Council,HH01,Homelessness,818,Bed & Breakfast Payment,220194,08/11/2017,09/11/2017,CR424138,RENT CONNECT,RC-HDC022, 900.00 
http://statistics.data.gov.uk/id/local-authority/12UE,Huntingdonshire District Council,HH01,Homelessness,818,Bed & Breakfast Payment,221126,23/11/2017,23/11/2017,CR424138,RENT CONNECT,RC-HDC023, 900.00 
http://statistics.data.gov.uk/id/local-authority/12UE,Huntingdonshire District Council,HH01,Homelessness,818,Bed & Breakfast Payment,220194,08/11/2017,09/11/2017,CR424138,RENT CONNECT,RC-HDC022, 975.00 
http://statistics.data.gov.uk/id/local-authority/12UE,Huntingdonshire District Council,HH01,Homelessness,818,Bed & Breakfast Payment,221126,23/11/2017,23/11/2017,CR424138,RENT CONNECT,RC-HDC023, 975.00 
http://statistics.data.gov.uk/id/local-authority/12UE,Huntingdonshire District Council,GV14,Whittlesey & District Internal,861,Levies,618267,30/11/2017,30/11/2017,CR000849,WHITTLESEY INT DRAINAGE BOARD,SPECIAL LEVY," 15,743.64 "
http://statistics.data.gov.uk/id/local-authority/12UE,Huntingdonshire District Council,GA12,Nndr Tariff/Topup To/From Govt,861,Levies,50236,30/11/2017,27/12/2017,,,," 1,383,902.00 "
http://statistics.data.gov.uk/id/local-authority/12UE,Huntingdonshire District Council,ZP02,Operations Diesel Stock,980,Stock Purchases,219942,09/11/2017,09/11/2017,CR455975,CERTAS ENERGY T/A PACE FUELCARE,8745259," 28,788.00 "
http://statistics.data.gov.uk/id/local-authority/12UE,Huntingdonshire District Council,ZP02,Operations Diesel Stock,980,Stock Purchases,221054,22/11/2017,23/11/2017,CR455975,CERTAS ENERGY T/A PACE FUELCARE,8842971," 29,401.04 "
http://statistics.data.gov.uk/id/local-authority/12UE,Huntingdonshire District Council,LR02,Impressions,A13,Course Fee,221512,29/11/2017,30/11/2017,CR425032,X RUNNER LTD,INV-0230, 990.00 
http://statistics.data.gov.uk/id/local-authority/12UE,Huntingdonshire District Council,GA02,Government Grant Support,B53,R S G,50236,30/11/2017,27/12/2017,,,,"-94,548.00 "
